{"text_format":"1","workbook":"xlsx","n_sheets":12,"sheets":["Hoofdmenu","Toelichting","NAW_gegevens","Mededelingen","Voorblad","Kostenverzamelstaat","Zorg via CAK - AK en ZMV","Zorg via CAK - ZZV","Volledig pakket thuis","Dagbesteding en vervoer","Beheerskosten","Blad1"],"not_rendered":{"charts":0,"images":1,"macros":1,"external_links":6,"defined_names":64,"comments":0,"pivot_tables":0},"unopened":[],"bounds":{"document_bytes":16777216,"sheet_cells":100000,"rows_first":2000,"rows_last":500,"rows_between":2000,"halvings":0,"cell_chars":16384,"cell_head_chars":4096},"cells_cut":0,"cells_raw":0,"read":"whole","date_system":"1900"}

{"sheet":"Hoofdmenu","index":0,"n_rows":14,"n_cols":2,"rows_kept":14,"cut":false,"hidden":false,"merged":[[0,0,0,1],[1,0,1,1]]}
["HOOFDMENU"]
["KWARTAALSTAAT Wlz 2019 2e KWARTAAL - Wlz-REGIO"]
["Navigatie","Afdrukken"]
[]
[" 01. Toelichting"]
[" 02. NAW gegevens"]
[" 03. Mededelingen"]
[" 04. Voorblad"]
[" 05. Kostenverzamelstaat"]
[" 06. Zorg via CAK: Aanvaardbare kosten en Zorg met verblijf"]
[" 07. Zorg via CAK: Zorg zonder verblijf"]
[" 08. Zorg via CAK: Volledig pakket thuis"]
[" 09. Zorg via CAK: Dagbesteding en vervoer"]
[" 10. Beheerskosten"]

{"sheet":"Toelichting","index":1,"n_rows":0,"n_cols":0,"rows_kept":0,"cut":false,"hidden":false,"merged":[]}

{"sheet":"NAW_gegevens","index":2,"n_rows":45,"n_cols":3,"rows_kept":45,"cut":false,"hidden":false,"merged":[[1,0,1,1],[2,0,2,1]]}
[]
["NAW-MENU"]
["KWARTAALSTAAT Wlz 2019 2e KWARTAAL - Wlz-REGIO"]
[" Uzovi-nummer:"]
[" Naam Wlz-regio:",{"$f":"IF(naw_uzovi_zorgkantoor=\"\",\"\",VLOOKUP(naw_uzovi_zorgkantoor,A13:B45,2))","v":""}]
[" Wlz-uitvoerder:",{"$f":"IF(naw_uzovi_zorgkantoor=\"\",\"\",VLOOKUP(naw_uzovi_zorgkantoor,A13:C45,3))","v":""}]
[" Contactpersoon:"]
[" Telefoonnummer:"]
[" E-mail:"]
[]
["Let op dat u het goede UZOVI-nummer invult, zie onderstaand overzicht:"]
["UZOVI","NAAM Wlz-REGIO","Wlz-UITVOERDER"]
["000A","N.V.T","ASR Wlz-uitvoerder BV"]
["000B","N.V.T","ONVZ Langdurige Zorg BV"]
["5501","GRONINGEN","Stichting Zorgkantoor Menzis"]
["5502","FRIESLAND","Zorgkantoor Friesland BV"]
["5503","DRENTHE","Zilveren Kruis Zorgkantoor NV"]
["5504","ZWOLLE","Zilveren Kruis Zorgkantoor NV"]
["5505","TWENTE","Stichting Zorgkantoor Menzis"]
["5506","APELDOORN, ZUTPHEN EN OMSTREKEN","Zilveren Kruis Zorgkantoor NV"]
["5507","ARNHEM","Stichting Zorgkantoor Menzis"]
["5508","NIJMEGEN","VGZ Zorgkantoor BV"]
["5509","UTRECHT","Zilveren Kruis Zorgkantoor NV"]
["5510","FLEVOLAND","Zilveren Kruis Zorgkantoor NV"]
["5511","'T GOOI","Zilveren Kruis Zorgkantoor NV"]
["5512","NOORD-HOLLAND NOORD","VGZ Zorgkantoor BV"]
["5513","KENNEMERLAND","Zilveren Kruis Zorgkantoor NV"]
["5514","ZAANSTREEK/WATERLAND","Zilveren Kruis Zorgkantoor NV"]
["5515","AMSTERDAM","Zilveren Kruis Zorgkantoor NV"]
["5516","AMSTELLAND EN DE MEERLANDEN","Stichting Wlz-uitvoerder Zorg en Zekerheid"]
["5517","ZUID-HOLLAND NOORD","Stichting Wlz-uitvoerder Zorg en Zekerheid"]
["5518","HAAGLANDEN","CZ Zorgkantoor BV"]
["5519","WESTLAND SCHIELAND DELFLAND","Zorgkantoor DSW BV"]
["5520","MIDDEN-HOLLAND","VGZ Zorgkantoor BV"]
["5521","ROTTERDAM","Zilveren Kruis Zorgkantoor NV"]
["5523","ZUID-HOLLANDSE EILANDEN","CZ Zorgkantoor BV"]
["5524","WAARDENLAND","VGZ Zorgkantoor BV"]
["5525","ZEELAND","CZ Zorgkantoor BV"]
["5526","WEST-BRABANT","CZ Zorgkantoor BV"]
["5527","MIDDEN-BRABANT","VGZ Zorgkantoor BV"]
["5528","NOORDOOST BRABANT","VGZ Zorgkantoor BV"]
["5529","ZUIDOOST BRABANT","CZ Zorgkantoor BV"]
["5530","NOORD- EN MIDDEN-LIMBURG","VGZ Zorgkantoor BV"]
["5531","ZUID-LIMBURG","CZ Zorgkantoor BV"]
["5532","MIDDEN-IJSSEL","Salland Zorgkantoor BV"]

{"sheet":"Mededelingen","index":3,"n_rows":4,"n_cols":2,"rows_kept":4,"cut":false,"hidden":false,"merged":[]}
[" KWARTAALSTAAT Wlz 2019 2e KWARTAAL - Wlz-REGIO"]
[{"$f":"CONCATENATE(\" UZOVI: \",NAW_gegevens!naw_uzovi_zorgkantoor,\"   Wlz-regio: \",NAW_gegevens!naw_naam_zorgkantoor,\"   Wlz-uitvoerder: \",NAW_gegevens!B6,)","v":" UZOVI:    Wlz-regio:    Wlz-uitvoerder: "}]
[]
[null,"Mededelingen: "]

{"sheet":"Voorblad","index":4,"n_rows":26,"n_cols":3,"rows_kept":26,"cut":false,"hidden":false,"merged":[[10,1,11,9],[14,1,15,9],[16,1,16,9],[17,1,17,9],[12,1,13,9]]}
[]
[]
[]
[]
[]
[]
[]
[]
[]
[]
[null,"KWARTAALSTAAT Wlz 2019"]
[]
[null,"2e KWARTAAL"]
[]
[null,"Wlz-REGIO"]
[]
[]
[]
[]
[null,"● KOSTENVERZAMELSTAAT OPGENOMEN IN KWARTAALSTAAT"]
[null,"● SPECIFICATIES ZORGKOSTEN EN PRODUCTIE, VIA CAK"]
[null,null,"Zorg via CAK: Zorgzwaartepakketten"]
[null,null,"Zorg via CAK: zorg zonder verblijf"]
[null,null,"Zorg via CAK: volledig pakket thuis"]
[null,null,"Zorg via CAK: dagbesteding en vervoer"]
[null,"● SPECIFICATIE BEHEERSKOSTEN"]

{"sheet":"Kostenverzamelstaat","index":5,"n_rows":40,"n_cols":3,"rows_kept":40,"cut":false,"hidden":false,"merged":[[5,0,5,1],[39,0,39,1],[4,0,4,1]]}
[" KWARTAALSTAAT Wlz 2019 2e KWARTAAL - Wlz-REGIO"]
[{"$f":"CONCATENATE(\" UZOVI: \",NAW_gegevens!naw_uzovi_zorgkantoor,\"   Wlz-regio: \",NAW_gegevens!naw_naam_zorgkantoor,\"   Wlz-uitvoerder: \",NAW_gegevens!B6,)","v":" UZOVI:    Wlz-regio:    Wlz-uitvoerder: "}]
[]
[]
[" KOSTENVERZAMELSTAAT"]
[" KOSTEN OPGENOMEN IN KWARTAALSTAAT",null,"BEDRAG"]
[" VIA CAK","REALISATIE ZORG MET VERBLIJF:"]
[null,"   Zorgzwaartepakket verpleging en verzorging inclusief dagbesteding",{"$f":"'Zorg via CAK - AK en ZMV'!E18","v":0}]
[null,"   Zorgzwaartepakket verstandelijk gehandicaptenzorg inclusief dagbesteding",{"$f":"'Zorg via CAK - AK en ZMV'!E31","v":0}]
[null,"   Zorgzwaartepakket verstandelijk gehandicaptenzorg exclusief dagbesteding",{"$f":"'Zorg via CAK - AK en ZMV'!E43","v":0}]
[null,"   Zorgzwaartepakket licht verstandelijk gehandicaptenzorg inclusief dagbesteding",{"$f":"'Zorg via CAK - AK en ZMV'!E52","v":0}]
[null,"   Zorgzwaartepakket sterk gedragsgestoorde licht verstandelijk gehandicaptenzorg inclusief dagbesteding",{"$f":"'Zorg via CAK - AK en ZMV'!E62","v":0}]
[null,"   Zorgzwaartepakket lichamelijk gehandicaptenzorg inclusief dagbesteding",{"$f":"'Zorg via CAK - AK en ZMV'!E73","v":0}]
[null,"   Zorgzwaartepakket lichamelijk gehandicaptenzorg exclusief dagbesteding",{"$f":"'Zorg via CAK - AK en ZMV'!E84","v":0}]
[null,"   Zorgzwaartepakket auditief en communicatief gehandicaptenzorg inclusief dagbesteding",{"$f":"'Zorg via CAK - AK en ZMV'!E92","v":0}]
[null,"   Zorgzwaartepakket auditief en communicatief gehandicaptenzorg exclusief dagbesteding",{"$f":"'Zorg via CAK - AK en ZMV'!E100","v":0}]
[null,"   Zorgzwaartepakket visueel gehandicaptenzorg inclusief dagbesteding",{"$f":"'Zorg via CAK - AK en ZMV'!E109","v":0}]
[null,"   Zorgzwaartepakket visueel gehandicaptenzorg exclusief dagbesteding",{"$f":"'Zorg via CAK - AK en ZMV'!E123","v":0}]
[null,"   Zorgzwaartepakket geestelijke gezondheidszorg, groep B inclusief dagbesteding",{"$f":"'Zorg via CAK - AK en ZMV'!E135","v":0}]
[null,"   Zorgzwaartepakket geestelijke gezondheidszorg, groep B exclusief dagbesteding",{"$f":"'Zorg via CAK - AK en ZMV'!E146","v":0}]
[null,"REALISATIE ZORG ZONDER VERBLIJF"]
[null,"   Realisatie zorg zonder verblijf (TOTAAL)",{"$f":"'Zorg via CAK - ZZV'!E42","v":0}]
[null,"REALISATIE VOLLEDIG PAKKET THUIS"]
[null,"   ZZP VPT verpleging en verzorging inclusief dagbesteding",{"$f":"'Volledig pakket thuis'!D18","v":0}]
[null,"   ZZP VPT verstandelijk gehandicaptenzorg inclusief dagbesteding",{"$f":"'Volledig pakket thuis'!D31","v":0}]
[null,"   ZZP VPT verstandelijk gehandicaptenzorg exclusief dagbesteding",{"$f":"'Volledig pakket thuis'!D43","v":0}]
[null,"   ZZP VPT licht verstandelijk gehandicaptenzorg inclusief dagbesteding",{"$f":"'Volledig pakket thuis'!D52","v":0}]
[null,"   ZZP VPT sterk gedragsgestoorde licht verstandelijk gehandicaptenzorg inclusief dagbesteding",{"$f":"'Volledig pakket thuis'!D57","v":0}]
[null,"   ZZP VPT lichamelijk gehandicaptenzorg inclusief dagbesteding",{"$f":"'Volledig pakket thuis'!D68","v":0}]
[null,"   ZZP VPT lichamelijk gehandicaptenzorg exclusief dagbesteding",{"$f":"'Volledig pakket thuis'!D79","v":0}]
[null,"   ZZP VPT auditief en communicatief gehandicaptenzorg inclusief dagbesteding",{"$f":"'Volledig pakket thuis'!D87","v":0}]
[null,"   ZZP VPT auditief en communicatief gehandicaptenzorg exclusief dagbesteding",{"$f":"'Volledig pakket thuis'!D95","v":0}]
[null,"   ZZP VPT visueel gehandicaptenzorg inclusief dagbesteding",{"$f":"'Volledig pakket thuis'!D104","v":0}]
[null,"   ZZP VPT visueel gehandicaptenzorg exclusief dagbesteding",{"$f":"'Volledig pakket thuis'!D113","v":0}]
[null,"REALISATIE DAGBESTEDING EN VERVOER"]
[null,"   Dagbesteding, zorg zonder verblijf",{"$f":"'Dagbesteding en vervoer'!C13","v":0}]
[null,"   Vervoer, zorg zonder verblijf",{"$f":"'Dagbesteding en vervoer'!C14","v":0}]
[null,"   Dagbesteding, zorg met verblijf, gehandicaptenzorg",{"$f":"'Dagbesteding en vervoer'!C23","v":0}]
[null,"   Vervoer dagbesteding, intramuraal",{"$f":"'Dagbesteding en vervoer'!C28","v":0}]
[" TOTAAL BEHEERSKOSTEN",null,{"$f":"Beheerskosten!E10","v":0}]

{"sheet":"Zorg via CAK - AK en ZMV","index":6,"n_rows":146,"n_cols":10,"rows_kept":146,"cut":false,"hidden":false,"merged":[[139,0,139,1],[140,0,140,1],[141,0,141,1],[142,0,142,1],[145,0,145,2],[130,0,130,1],[131,0,131,1],[134,0,134,2],[136,0,137,1],[138,0,138,1],[144,0,144,1],[132,0,132,1],[133,0,133,1],[136,2,137,2],[106,0,106,1],[107,0,107,1],[108,0,108,2],[99,0,99,2],[115,0,116,1],[98,0,98,1],[101,0,102,1],[103,0,103,1],[104,0,104,1],[105,0,105,1],[115,2,116,2],[96,0,96,1],[97,0,97,1],[82,0,82,1],[83,0,83,2],[87,0,87,1],[88,0,88,1],[89,0,89,1],[85,0,86,1],[85,2,86,2],[81,0,81,1],[70,0,70,1],[71,0,71,1],[72,0,72,2],[74,0,75,1],[76,0,76,1],[90,0,90,1],[91,0,91,2],[95,0,95,1],[12,0,12,1],[38,0,38,1],[39,0,39,1],[41,0,41,1],[40,0,40,1],[42,0,42,2],[77,0,77,1],[79,0,79,1],[80,0,80,1],[7,0,7,1],[8,0,8,1],[5,3,5,4],[5,2,6,2],[5,0,6,1],[32,2,33,2],[32,3,32,4],[15,0,15,1],[16,0,16,1],[20,0,21,1],[22,0,22,1],[23,0,23,1],[24,0,24,1],[25,0,25,1],[17,0,17,2],[30,0,30,2],[13,0,13,1],[14,0,14,1],[20,2,21,2],[20,3,20,4],[28,0,28,1],[9,0,9,1],[10,0,10,1],[11,0,11,1],[85,3,85,4],[44,2,45,2],[44,3,44,4],[63,2,64,2],[63,3,63,4],[58,0,59,1],[58,2,59,2],[58,3,58,4],[47,0,47,1],[48,0,48,1],[49,0,49,1],[50,0,50,1],[51,0,51,2],[63,0,64,1],[60,0,60,1],[61,0,61,2],[44,0,45,1],[46,0,46,1],[65,0,65,1],[66,0,66,1],[67,0,67,1],[68,0,68,1],[69,0,69,1],[78,0,78,1],[125,2,126,2],[117,0,117,1],[118,0,118,1],[119,0,119,1],[120,0,120,1],[121,0,121,1],[122,0,122,2],[125,0,126,1],[127,0,127,1],[4,8,5,8],[4,9,5,9],[2,8,3,9],[128,0,128,1],[129,0,129,1],[136,3,136,4],[143,0,143,1],[115,3,115,4],[125,3,125,4],[93,3,93,4],[101,2,102,2],[101,3,101,4],[93,0,94,1],[93,2,94,2],[74,2,75,2],[74,3,74,4],[26,0,26,1],[27,0,27,1],[29,0,29,1],[32,0,33,1],[34,0,34,1],[35,0,35,1],[36,0,36,1],[37,0,37,1]]}
[" KWARTAALSTAAT Wlz 2019 2e KWARTAAL - Wlz-REGIO"]
[{"$f":"CONCATENATE(\" UZOVI: \",NAW_gegevens!naw_uzovi_zorgkantoor,\"   Wlz-regio: \",NAW_gegevens!naw_naam_zorgkantoor,\"   Wlz-uitvoerder: \",NAW_gegevens!B6,)","v":" UZOVI:    Wlz-regio:    Wlz-uitvoerder: "}]
[null,null,null,null,null,null,null,null,"BR/REG-19121c (actief)"]
[" SPECIFICATIES ZORGKOSTEN EN PRODUCTIE, VIA CAK"]
[" ZORGZWAARTEPAKKET VERPLEGING EN VERZORGING (TOEGELATEN VOOR VERBLIJF OF MET EN ZONDER BEHANDELING)",null,null,null,null,null,null,null,"Niet-toegelaten","Toegelaten "]
[" VERPLEGING EN VERZORGING, INCLUSIEF DAGBESTEDING",null,"NZa-\ncode","REALISATIE"]
[null,null,null,"AANTAL","BEDRAG"]
[" Beschut wonen met enige begeleiding",null,"1VV",null,null,null,{"$f":"IF(OR(NOT(ISNUMBER(E8)),NOT(ISNUMBER(D8)),E8=0,D8=0),\"\",IF(E8/D8<I8,\"REALISATIE: De gemiddelde kosten zijn lager dan het laagste tarief\",IF(E8/D8>J8,\"REALISATIE: De gemiddelde kosten zijn hoger dan het hoogste tarief\",\"\")))","v":""},null,99.87,99.87]
[" Beschut wonen met begeleiding en verzorging",null,"2VV",null,null,null,"",null,128.08000000000001,128.08000000000001]
[" Beschut wonen met begeleiding en intensieve verzorging",null,"3VV",null,null,null,"",null,159.63,183.28]
[" Beschut wonen met intensieve begeleiding en uitgebreide verzorging",null,"4VV",null,null,null,"",null,166.47,197.33]
[" Beschermd wonen met intensieve dementiezorg",null,"5VV",null,null,null,"",null,216.46,250.05]
[" Beschermd wonen met intensieve verzorging en verpleging",null,"6VV",null,null,null,"",null,216.72,251.14]
[" Beschermd wonen met zeer intensieve zorg, vanwege specifieke\n aandoeningen, met nadruk op begeleiding",null,"7VV",null,null,null,"",null,249.87,293.16000000000003]
[" Beschermd wonen met zeer intensieve zorg, vanwege specifieke\n aandoeningen, met nadruk op verzorging/verpleging",null,"8VV",null,null,null,"",null,287.44,331.34]
[" Herstelgerichte verpleging en verzorging",null,"9VVB",null,null,null,"",null,211.55,300.63]
[" Beschermd verblijf met intensieve palliatief-terminale zorg",null,"10VV",null,null,null,"",null,310.69,354.15]
[" TOTAAL VERPLEGING EN VERZORGING, INCLUSIEF DAGBESTEDING",null,null,null,{"$f":"SUM(E8:E17)","v":0}]
[]
[" ZORGZWAARTEPAKKET GEHANDICAPTENZORG (TOEGELATEN VOOR VERBLIJF OF MET EN ZONDER BEHANDELING)"]
[" VERSTANDELIJK GEHANDICAPTEN, INCLUSIEF DAGBESTEDING",null,"NZa-\ncode","REALISATIE"]
[null,null,null,"AANTAL","BEDRAG"]
[" Wonen met enige begeleiding",null,"1VG",null,null,null,{"$f":"IF(OR(NOT(ISNUMBER(E23)),NOT(ISNUMBER(D23)),E23=0,D23=0),\"\",IF(E23/D23<I23,\"REALISATIE: De gemiddelde kosten zijn lager dan het laagste tarief\",IF(E23/D23>J23,\"REALISATIE: De gemiddelde kosten zijn hoger dan het hoogste tarief\",\"\")))","v":""},null,128.72,128.72]
[" Wonen met begeleiding",null,"2VG",null,null,null,"",null,143.11000000000001,143.11000000000001]
[" Wonen met begeleiding en verzorging",null,"3VG",null,null,null,"",null,170.34,186.1]
[" Wonen met begeleiding en intensieve verzorging",null,"4VG",null,null,null,"",null,197.6,218.97]
[" Wonen met intensieve begeleiding en intensieve verzorging",null,"5VG",null,null,null,"",null,240.02,280.76]
[" Wonen met intensieve begeleiding, verzorging en gedragsregulering",null,"6VG",null,null,null,"",null,215.88,251.38]
[" (Besloten) wonen met zeer intensieve begeleiding, verzorging en \n gedragsregulering",null,"7VG",null,null,null,"",null,259.94,350.87]
[" Wonen met begeleiding en volledige verzorging en verpleging",null,"8VG",null,null,null,"",null,296.66000000000003,345.41]
[" TOTAAL VERSTANDELIJK GEHANDICAPTEN, INCLUSIEF DAGBESTEDING",null,null,null,{"$f":"SUM(E23:E30)","v":0}]
[]
[" VERSTANDELIJK GEHANDICAPTEN, EXCLUSIEF DAGBESTEDING",null,"NZa-\ncode","REALISATIE"]
[null,null,null,"AANTAL","BEDRAG"]
[" Wonen met enige begeleiding",null,"1VG",null,null,null,{"$f":"IF(OR(NOT(ISNUMBER(E35)),NOT(ISNUMBER(D35)),E35=0,D35=0),\"\",IF(E35/D35<I35,\"REALISATIE: De gemiddelde kosten zijn lager dan het laagste tarief\",IF(E35/D35>J35,\"REALISATIE: De gemiddelde kosten zijn hoger dan het hoogste tarief\",\"\")))","v":""},null,82.47,82.47]
[" Wonen met begeleiding",null,"2VG",null,null,null,"",null,95.95,95.95]
[" Wonen met begeleiding en verzorging",null,"3VG",null,null,null,"",null,126.39,143.54]
[" Wonen met begeleiding en intensieve verzorging",null,"4VG",null,null,null,"",null,153.28,179.05]
[" Wonen met intensieve begeleiding en intensieve verzorging",null,"5VG",null,null,null,"",null,181.82,225.18]
[" Wonen met intensieve begeleiding, verzorging en gedragsregulering",null,"6VG",null,null,null,"",null,158.85,194.73]
[" (Besloten) wonen met zeer intensieve begeleiding, verzorging en\n gedragsregulering",null,"7VG",null,null,null,"",null,194.96,273.98]
["Wonen met begeleiding en volledige verzorging en verpleging",null,"8VG",null,null,null,"",null,216.85,267.10000000000002]
[" TOTAAL VERSTANDELIJK GEHANDICAPTEN, EXCLUSIEF DAGBESTEDING",null,null,null,{"$f":"SUM(E35:E42)","v":0}]
[null,null,null,null,null,null,{"$f":"IF(OR(NOT(ISNUMBER(E44)),NOT(ISNUMBER(D44)),E44=0,D44=0),\"\",IF(E44/D44<I44,\"REALISATIE: De gemiddelde kosten zijn lager dan het laagste tarief\",IF(E44/D44>J44,\"REALISATIE: De gemiddelde kosten zijn hoger dan het hoogste tarief\",\"\")))","v":""}]
[" LICHT VERSTANDELIJK GEHANDICAPTEN, INCL. DAGBESTEDING",null,"NZa-\ncode","REALISATIE"]
[null,null,null,"AANTAL","BEDRAG"]
[" Wonen met enige behandeling en begeleiding",null,"1LVG",null,null,null,{"$f":"IF(OR(NOT(ISNUMBER(E47)),NOT(ISNUMBER(D47)),E47=0,D47=0),\"\",IF(E47/D47<I47,\"REALISATIE: De gemiddelde kosten zijn lager dan het laagste tarief\",IF(E47/D47>J47,\"REALISATIE: De gemiddelde kosten zijn hoger dan het hoogste tarief\",\"\")))","v":""},null,218.26,218.26]
[" Wonen met behandeling en begeleiding",null,"2LVG",null,null,null,{"$f":"IF(OR(NOT(ISNUMBER(E48)),NOT(ISNUMBER(D48)),E48=0,D48=0),\"\",IF(E48/D48<I48,\"REALISATIE: De gemiddelde kosten zijn lager dan het laagste tarief\",IF(E48/D48>J48,\"REALISATIE: De gemiddelde kosten zijn hoger dan het hoogste tarief\",\"\")))","v":""},null,259.58,259.58999999999997]
[" Wonen met intensieve behandeling en begeleiding, kleine groep",null,"3LVG",null,null,null,{"$f":"IF(OR(NOT(ISNUMBER(E49)),NOT(ISNUMBER(D49)),E49=0,D49=0),\"\",IF(E49/D49<I49,\"REALISATIE: De gemiddelde kosten zijn lager dan het laagste tarief\",IF(E49/D49>J49,\"REALISATIE: De gemiddelde kosten zijn hoger dan het hoogste tarief\",\"\")))","v":""},null,337.38,337.38]
[" Wonen met zeer intensieve behandeling en begeleiding",null,"4LVG",null,null,null,{"$f":"IF(OR(NOT(ISNUMBER(E50)),NOT(ISNUMBER(D50)),E50=0,D50=0),\"\",IF(E50/D50<I50,\"REALISATIE: De gemiddelde kosten zijn lager dan het laagste tarief\",IF(E50/D50>J50,\"REALISATIE: De gemiddelde kosten zijn hoger dan het hoogste tarief\",\"\")))","v":""},null,385.52,385.52]
[" Besloten wonen met zeer intensieve behandeling en begeleiding",null,"5LVG",null,null,null,{"$f":"IF(OR(NOT(ISNUMBER(E51)),NOT(ISNUMBER(D51)),E51=0,D51=0),\"\",IF(E51/D51<I51,\"REALISATIE: De gemiddelde kosten zijn lager dan het laagste tarief\",IF(E51/D51>J51,\"REALISATIE: De gemiddelde kosten zijn hoger dan het hoogste tarief\",\"\")))","v":""},null,367.8,367.8]
[" TOTAAL LICHT VERSTANDELIJK GEHANDICAPTEN, INCLUSIEF DAGBESTEDING",null,null,null,{"$f":"SUM(E47:E51)","v":0}]
[]
[" KWARTAALSTAAT Wlz 2019 2e KWARTAAL - Wlz-REGIO"]
[{"$f":"CONCATENATE(\" UZOVI: \",NAW_gegevens!naw_uzovi_zorgkantoor,\"   Wlz-regio: \",NAW_gegevens!naw_naam_zorgkantoor,\"   Wlz-uitvoerder: \",NAW_gegevens!B6,)","v":" UZOVI:    Wlz-regio:    Wlz-uitvoerder: "}]
[]
[" SPECIFICATIES ZORGKOSTEN EN PRODUCTIE, VIA CAK"]
[" ZORGZWAARTEPAKKET GEHANDICAPTENZORG (TOEGELATEN VOOR VERBLIJF OF MET EN ZONDER BEHANDELING), (vervolg)"]
[" STERK GEDRAGSGESTOORDE LICHT VERSTANDELIJK GEHANDICAPTEN, \n INCLUSIEF DAGBESTEDING",null,"NZa-\ncode","REALISATIE"]
[null,null,null,"AANTAL","BEDRAG"]
[" Behandeling in een SGLVG behandelcentrum",null,"1SGLVG",null,null,null,{"$f":"IF(OR(NOT(ISNUMBER(E61)),NOT(ISNUMBER(D61)),E61=0,D61=0),\"\",IF(E61/D61<I61,\"REALISATIE: De gemiddelde kosten zijn lager dan het laagste tarief\",IF(E61/D61>J61,\"REALISATIE: De gemiddelde kosten zijn hoger dan het hoogste tarief\",\"\")))","v":""},null,421.16,421.16]
[" TOTAAL STERK GEDRAGSGESTOORDE LICHT VERSTANDELIJK \n GEHANDICAPTEN, INCLUSIEF DAGBESTEDING",null,null,null,{"$f":"SUM(E61)","v":0}]
[]
[" LICHAMELIJK GEHANDICAPTEN, INCLUSIEF DAGBESTEDING",null,"NZa-\ncode","REALISATIE"]
[null,null,null,"AANTAL","BEDRAG"]
[" Wonen met enige begeleiding en enige verzorging",null,"1LG",null,null,null,{"$f":"IF(OR(NOT(ISNUMBER(E66)),NOT(ISNUMBER(D66)),E66=0,D66=0),\"\",IF(E66/D66<I66,\"REALISATIE: De gemiddelde kosten zijn lager dan het laagste tarief\",IF(E66/D66>J66,\"REALISATIE: De gemiddelde kosten zijn hoger dan het hoogste tarief\",\"\")))","v":""},null,171.81,171.81]
[" Wonen met begeleiding en enige verzorging",null,"2LG",null,null,null,{"$f":"IF(OR(NOT(ISNUMBER(E67)),NOT(ISNUMBER(D67)),E67=0,D67=0),\"\",IF(E67/D67<I67,\"REALISATIE: De gemiddelde kosten zijn lager dan het laagste tarief\",IF(E67/D67>J67,\"REALISATIE: De gemiddelde kosten zijn hoger dan het hoogste tarief\",\"\")))","v":""},null,199.01,199.01]
[" Wonen met enige begeleiding en verzorging",null,"3LG",null,null,null,"",null,178.74,198.93]
[" Wonen met begeleiding en verzorging",null,"4LG",null,null,null,"",null,225.85,255]
[" Wonen met begeleiding en intensieve verzorging",null,"5LG",null,null,null,"",null,231.72,274.66000000000003]
[" Wonen met intensieve begeleiding en intensieve verzorging",null,"6LG",null,null,null,"",null,295.26,340.27]
[" Wonen met zeer intensieve begeleiding en zeer intensieve verzorging",null,"7LG",null,null,null,"",null,314.52999999999997,351.58]
[" TOTAAL LICHAMELIJK GEHANDICAPTEN, INCLUSIEF DAGBESTEDING",null,null,null,{"$f":"SUM(E66:E72)","v":0}]
[]
[" LICHAMELIJK GEHANDICAPTEN, EXCLUSIEF DAGBESTEDING",null,"NZa-\ncode","REALISATIE"]
[null,null,null,"AANTAL","BEDRAG"]
[" Wonen met enige begeleiding en enige verzorging",null,"1LG",null,null,null,{"$f":"IF(OR(NOT(ISNUMBER(E77)),NOT(ISNUMBER(D77)),E77=0,D77=0),\"\",IF(E77/D77<I77,\"REALISATIE: De gemiddelde kosten zijn lager dan het laagste tarief\",IF(E77/D77>J77,\"REALISATIE: De gemiddelde kosten zijn hoger dan het hoogste tarief\",\"\")))","v":""},null,116.9,116.9]
[" Wonen met begeleiding en enige verzorging",null,"2LG",null,null,null,{"$f":"IF(OR(NOT(ISNUMBER(E78)),NOT(ISNUMBER(D78)),E78=0,D78=0),\"\",IF(E78/D78<I78,\"REALISATIE: De gemiddelde kosten zijn lager dan het laagste tarief\",IF(E78/D78>J78,\"REALISATIE: De gemiddelde kosten zijn hoger dan het hoogste tarief\",\"\")))","v":""},null,148.94999999999999,148.94999999999999]
[" Wonen met enige begeleiding en verzorging",null,"3LG",null,null,null,"",null,122.92,142.91]
[" Wonen met begeleiding en verzorging",null,"4LG",null,null,null,"",null,177.37,207.52]
[" Wonen met begeleiding en intensieve verzorging",null,"5LG",null,null,null,"",null,174.69,218.63]
[" Wonen met intensieve begeleiding en intensieve verzorging",null,"6LG",null,null,null,"",null,248.29,293.11]
[" Wonen met zeer intensieve begeleiding en zeer intensieve verzorging",null,"7LG",null,null,null,"",null,268.36,323.14]
[" TOTAAL LICHAMELIJK GEHANDICAPTEN, EXCLUSIEF DAGBESTEDING",null,null,null,{"$f":"SUM(E77:E83)","v":0}]
[]
[" AUDITIEF EN COMMUNICATIEF GEHANDICAPTEN, INCLUSIEF \n DAGBESTEDING",null,"NZa-\ncode","REALISATIE"]
[null,null,null,"AANTAL","BEDRAG"]
[" Wonen met begeleiding en enige verzorging",null,"1ZGAUD",null,null,null,{"$f":"IF(OR(NOT(ISNUMBER(E88)),NOT(ISNUMBER(D88)),E88=0,D88=0),\"\",IF(E88/D88<I88,\"REALISATIE: De gemiddelde kosten zijn lager dan het laagste tarief\",IF(E88/D88>J88,\"REALISATIE: De gemiddelde kosten zijn hoger dan het hoogste tarief\",\"\")))","v":""},null,204.63,214.44]
[" Wonen met intensieve begeleiding en verzorging",null,"2ZGAUD",null,null,null,"",null,356.43,390.88]
[" Wonen met intensieve begeleiding en intensieve verzorging",null,"3ZGAUD",null,null,null,"",null,388.11,457394]
[" Wonen met intensieve begeleiding en enige verzorging",null,"4ZGAUD",null,null,null,"",null,261.43,295.83]
[" TOTAAL AUDITIEF EN COMMUNICATIEF GEHANDICAPTEN, INCLUSIEF \n DAGBESTEDING",null,null,null,{"$f":"SUM(E88:E91)","v":0}]
[]
[" AUDITIEF EN COMMUNICATIEF GEHANDICAPTEN, EXCLUSIEF \n DAGBESTEDING",null,"NZa-\ncode","REALISATIE"]
[null,null,null,"AANTAL","BEDRAG"]
[" Wonen met begeleiding en enige verzorging",null,"1ZGAUD",null,null,null,{"$f":"IF(OR(NOT(ISNUMBER(E96)),NOT(ISNUMBER(D96)),E96=0,D96=0),\"\",IF(E96/D96<I96,\"REALISATIE: De gemiddelde kosten zijn lager dan het laagste tarief\",IF(E96/D96>J96,\"REALISATIE: De gemiddelde kosten zijn hoger dan het hoogste tarief\",\"\")))","v":""},null,165.8,160.63999999999999]
[" Wonen met intensieve begeleiding en verzorging",null,"2ZGAUD",null,null,null,"",null,306.66000000000003,313.37]
[" Wonen met intensieve begeleiding en intensieve verzorging",null,"3ZGAUD",null,null,null,"",null,345.09,357.86]
[" Wonen met intensieve begeleiding en enige verzorging",null,"4ZGAUD",null,null,null,"",null,199.03,233.42]
[" TOTAAL AUDITIEF EN COMMUNICATIEF GEHANDICAPTEN, EXCLUSIEF \n DAGBESTEDING",null,null,null,{"$f":"SUM(E96:E99)","v":0}]
[]
[" VISUEEL GEHANDICAPTEN, INCLUSIEF DAGBESTEDING",null,"NZa-\ncode","REALISATIE"]
[null,null,null,"AANTAL","BEDRAG"]
[" Wonen met enige begeleiding en enige verzorging",null,"1ZGVIS",null,null,null,{"$f":"IF(OR(NOT(ISNUMBER(E104)),NOT(ISNUMBER(D104)),E104=0,D104=0),\"\",IF(E104/D104<I104,\"REALISATIE: De gemiddelde kosten zijn lager dan het laagste tarief\",IF(E104/D104>J104,\"REALISATIE: De gemiddelde kosten zijn hoger dan het hoogste tarief\",\"\")))","v":""},null,159.99,15.99]
[" Wonen met begeleiding en enige verzorging",null,"2ZGVIS",null,null,null,"",null,190.36,190.36]
[" Wonen met intensieve begeleiding en verzorging",null,"3ZGVIS",null,null,null,"",null,216.29,240.9]
[" Wonen met intensieve begeleiding en intensieve verzorging",null,"4ZGVIS",null,null,null,"",null,269.36,302.12]
[" Wonen met zeer intensieve begeleiding en zeer intensieve verzorging",null,"5ZGVIS",null,null,null,"",null,294.36,331.67]
[" TOTAAL VISUEEL GEHANDICAPTEN, INCLUSIEF DAGBESTEDING",null,null,null,{"$f":"SUM(E104:E108)","v":0}]
[]
[" KWARTAALSTAAT Wlz 2019 2e KWARTAAL - Wlz-REGIO"]
[{"$f":"CONCATENATE(\" UZOVI: \",NAW_gegevens!naw_uzovi_zorgkantoor,\"   Wlz-regio: \",NAW_gegevens!naw_naam_zorgkantoor,\"   Wlz-uitvoerder: \",NAW_gegevens!B6,)","v":" UZOVI:    Wlz-regio:    Wlz-uitvoerder: "}]
[]
[" SPECIFICATIES ZORGKOSTEN EN PRODUCTIE, VIA CAK"]
[" ZORGZWAARTEPAKKET GEHANDICAPTENZORG (TOEGELATEN VOOR VERBLIJF OF MET EN ZONDER BEHANDELING), (vervolg)"]
[" VISUEEL GEHANDICAPTEN, EXCLUSIEF DAGBESTEDING",null,"NZa-\ncode","REALISATIE"]
[null,null,null,"AANTAL","BEDRAG"]
[" Wonen met enige begeleiding en enige verzorging",null,"1ZGVIS",null,null,null,{"$f":"IF(OR(NOT(ISNUMBER(E118)),NOT(ISNUMBER(D118)),E118=0,D118=0),\"\",IF(E118/D118<I118,\"REALISATIE: De gemiddelde kosten zijn lager dan het laagste tarief\",IF(E118/D118>J118,\"REALISATIE: De gemiddelde kosten zijn hoger dan het hoogste tarief\",\"\")))","v":""},null,106.52,106.52]
[" Wonen met begeleiding en enige verzorging",null,"2ZGVIS",null,null,null,"",null,144.35,144.35]
[" Wonen met intensieve begeleiding en verzorging",null,"3ZGVIS",null,null,null,"",null,170.26,194.87]
[" Wonen met intensieve begeleiding en intensieve verzorging",null,"4ZGVIS",null,null,null,"",null,208.86,241.64]
[" Wonen met zeer intensieve begeleiding en zeer intensieve verzorging",null,"5ZGVIS",null,null,null,"",null,231.99,269.32]
[" TOTAAL VISUEEL GEHANDICAPTEN, EXCLUSIEF DAGBESTEDING",null,null,null,{"$f":"SUM(E118:E122)","v":0}]
[]
[" ZORGZWAARTEPAKKET GEESTELIJKE GEZONDHEIDSZORG (VOOR CLIËNTEN DIE VERBLIJVEN VANWEGE BEHANDELING OF BEGELEIDING)"]
[" GGZ B-GROEP, INCLUSIEF DAGBESTEDING",null,"NZa-\ncode","REALISATIE"]
[null,null,null,"AANTAL","BEDRAG"]
[" Voortgezet verblijf met begeleiding",null,"1BGGZ",null,null,null,{"$f":"IF(OR(NOT(ISNUMBER(E128)),NOT(ISNUMBER(D128)),E128=0,D128=0),\"\",IF(E128/D128<I128,\"REALISATIE: De gemiddelde kosten zijn lager dan het laagste tarief\",IF(E128/D128>J128,\"REALISATIE: De gemiddelde kosten zijn hoger dan het hoogste tarief\",\"\")))","v":""},null,126.98,126.98]
[" Voortgezet verblijf met structuur en uitgebreide begeleiding",null,"2BGGZ",null,null,null,"",null,198.14,198.14]
[" Voortgezet verblijf met intensieve begeleiding",null,"3BGGZ",null,null,null,"",null,210.34,210.34]
[" Voortgezet verblijf met intensieve begeleiding en verzorging",null,"4BGGZ",null,null,null,"",null,222.55,222.55]
[" Voortgezet verblijf met intensieve begeleiding en gedragsregulering",null,"5BGGZ",null,null,null,"",null,233.41,233.41]
[" Voortgezet verblijf met intensieve begeleiding en intensieve \n verpleging en verzorging",null,"6BGGZ",null,null,null,"",null,366.18,366.18]
[" Beveiligd voortgezet verblijf vanwege extreme gedragsproblematiek \n met zeer intensieve begeleiding",null,"7BGGZ",null,null,null,"",null,429.68,429.68]
[" TOTAAL GGZ B-groep, INCLUSIEF DAGBESTEDING",null,null,null,{"$f":"SUM(E128:E134)","v":0}]
[]
[" GGZ B-GROEP, EXCLUSIEF DAGBESTEDING",null,"NZa-\ncode","REALISATIE"]
[null,null,null,"AANTAL","BEDRAG"]
[" Voortgezet verblijf met begeleiding",null,"1BGGZ",null,null,null,{"$f":"IF(OR(NOT(ISNUMBER(E139)),NOT(ISNUMBER(D139)),E139=0,D139=0),\"\",IF(E139/D139<I139,\"REALISATIE: De gemiddelde kosten zijn lager dan het laagste tarief\",IF(E139/D139>J139,\"REALISATIE: De gemiddelde kosten zijn hoger dan het hoogste tarief\",\"\")))","v":""},null,97.62,97.62]
[" Voortgezet verblijf met structuur en uitgebreide begeleiding",null,"2BGGZ",null,null,null,"",null,159.52000000000001,159.52000000000001]
[" Voortgezet verblijf met intensieve begeleiding",null,"3BGGZ",null,null,null,"",null,169.55,169.55]
[" Voortgezet verblijf met intensieve begeleiding en verzorging",null,"4BGGZ",null,null,null,"",null,175.06,175.06]
[" Voortgezet verblijf met intensieve begeleiding en gedragsregulering",null,"5BGGZ",null,null,null,"",null,192.39,192.39]
[" Voortgezet verblijf met intensieve begeleiding en intensieve \n verpleging en verzorging",null,"6BGGZ",null,null,null,"",null,333.35,333.35]
[" Beveiligd voortgezet verblijf vanwege extreme gedragsproblematiek \n met zeer intensieve begeleiding",null,"7BGGZ",null,null,null,"",null,371.42,371.42]
[" TOTAAL GGZ B-groep, EXCLUSIEF DAGBESTEDING",null,null,null,{"$f":"SUM(E139:E145)","v":0}]

{"sheet":"Zorg via CAK - ZZV","index":7,"n_rows":42,"n_cols":10,"rows_kept":42,"cut":false,"hidden":false,"merged":[[41,0,41,2],[5,3,5,4],[8,0,12,0],[39,0,40,0],[5,8,6,9],[13,0,16,0],[17,0,27,0],[28,0,38,0],[5,2,6,2],[5,0,6,0],[5,1,6,1]]}
[" KWARTAALSTAAT Wlz 2019 2e KWARTAAL - Wlz-REGIO"]
[{"$f":"CONCATENATE(\" UZOVI: \",NAW_gegevens!naw_uzovi_zorgkantoor,\"   Wlz-regio: \",NAW_gegevens!naw_naam_zorgkantoor,\"   Wlz-uitvoerder: \",NAW_gegevens!$B$6,)","v":" UZOVI:    Wlz-regio:    Wlz-uitvoerder: "}]
[]
[" SPECIFICATIES ZORGKOSTEN EN PRODUCTIE, VIA CAK"]
[" ZORG ZONDER VERBLIJF, VERPLEGING EN VERZORGING, GEHANDICAPTENZORG, GEESTELIJKE GEZONDHEIDSZORG"]
[" CATEGORIE"," SUB-CATEGORIE","NZA-\ncode","REALISATIE",null,null,null,null,"BR/REG-19120a (actief)"]
[null,null,null,"AANTAL","BEDRAG"]
[" Huishoudelijke hulp"," Huishoudelijke hulp","H117",null,null,null,{"$f":"IF(OR((D8=\"\"),(E8=\"\")),\"\",IF(OR(E8=0,(E8*D8)<10),\"\",IF(ABS((E8/D8)/J8*100-100)>10,CONCATENATE(\"REALISATIE: Kosten (bedrag per uur) wijken \",ROUND(((E8/D8)/J8)*100-100,2),\"% af van het NZa-tarief.\"),\"\")))","v":""},null,"H117",32.39]
[" PV"," Persoonlijke verzorging","H126",null,null,null,"",null,"H126",54.96]
["PV"," Persoonlijke verzorging extra","H127",null,null,null,"",null,"H127",58.87]
["PV"," Persoonlijke verzorging speciaal","H120",null,null,null,"",null,"H120",71.48]
[null," Persoonlijke verzorging farmaceutische telezorg","H137",null,null,null,"",null,"H137",54.96]
[null," Persoonlijke verzorging zorg op afstand aanvullend","H136",null,null,null,"",null,"H136",54.96]
[" VP"," Verpleging","H104",null,null,null,"",null,"H104",71.48]
["VP"," Verpleging extra","H128",null,null,null,"",null,"H128",76.569999999999993]
["VP"," Verpleging speciaal","H106",null,null,null,"",null,"H106",89.66]
[null," Verpleging zorg op afstand aanvullend","H107",null,null,null,"",null,"H107",71.48]
[" Begeleiding"," Begeleiding","H300",null,null,null,"",null,"H300",61.56]
["Begeleiding"," Begeleiding extra","H150",null,null,null,"",null,"H150",65.930000000000007]
["Begeleiding"," Begeleiding speciaal 1 (nah)","H152",null,null,null,"",null,"H152",98.2]
["Begeleiding"," Begeleiding speciaal 2 (psy)","H153",null,null,null,"",null,"H153",105.29]
["Begeleiding"," Begeleiding zg visueel","H301",null,null,null,"",null,"H301",109.32]
["Begeleiding"," Begeleiding zg auditief","H303",null,null,null,"",null,"H303",91.29]
["Begeleiding"," Begeleiding speciaal 2 (zg) visueel","H302",null,null,null,"",null,"H302",134.36000000000001]
["Begeleiding"," Begeleiding speciaal 2 (zg) auditief","H304",null,null,null,"",null,"H304",116.36]
["Begeleiding"," Nachtverzorging","H132",null,null,null,"",null,"H132",51.68]
["Begeleiding"," Nachtverpleging","H180",null,null,null,"",null,"H180",97.16]
[null," Begeleiding zorg op afstand aanvullend","H305",null,null,null,"",null,"H305",61.56]
[" Behandeling"," Behandeling som, pg, vg, lg, zg (SO)","H335",null,null,null,"",null,"H335",157.27000000000001]
[null," Behandeling som, pg, vg, lg, zg (AVG)","H336",null,null,null,"",null,"H336",157.27000000000001]
["BH"," Behandeling gedragswetenschapper","H329",null,null,null,"",null,"H329",126.07]
["BH"," Behandeling paramedisch","H330",null,null,null,"",null,"H330",89.55]
[null," Behandeling IOG lvg","H334",null,null,null,"",null,"H334",115.32]
["BH"," Behandeling lvg","H325",null,null,null,"",null,"H325",127.83]
["BH"," Behandeling basis sglvg-traject","H326",null,null,null,"",null,"H326",127.83]
["BH"," Behandeling basis sglvg deeltijd","H327",null,null,null,"",null,"H327",127.83]
["BH"," Behandeling Families First (j)lvg","H331",null,null,null,"",null,"H331",132.69999999999999]
["BH"," Behandeling visueel","H332",null,null,null,"",null,"H332",144.87]
["BH"," Behandeling auditief","H333",null,null,null,"",null,"H333",128.44]
[" Reiskosten"," Reiskosten prestaties behandeling (H325 t/m H331 \n en H334 t/m H336)","H321",null,null,null,"",null,"H321",29.57]
[null," Reiskosten prestaties behandeling (H332 en H333)","H337",null,null,null,"",null,"H337",23.99]
[" TOTAAL ZORG ZONDER VERBLIJF",null,null,null,{"$f":"SUM(E8:E41)","v":0}]

{"sheet":"Volledig pakket thuis","index":8,"n_rows":113,"n_cols":9,"rows_kept":113,"cut":false,"hidden":false,"merged":[[32,0,33,0],[32,1,33,1],[32,2,32,3],[32,7,32,8],[42,0,42,1],[20,0,21,0],[20,1,21,1],[20,2,20,3],[20,7,20,8],[30,0,30,1],[5,1,6,1],[5,2,5,3],[5,7,5,8],[5,0,6,0],[17,0,17,1],[44,0,45,0],[44,1,45,1],[44,2,44,3],[44,7,44,8],[51,0,51,1],[58,0,59,0],[58,1,59,1],[58,2,58,3],[58,7,58,8],[53,0,54,0],[53,1,54,1],[53,2,53,3],[53,7,53,8],[56,0,56,1],[67,0,67,1],[80,0,81,0],[80,1,81,1],[80,2,80,3],[80,7,80,8],[69,0,70,0],[69,1,70,1],[69,2,69,3],[69,7,69,8],[78,0,78,1],[86,0,86,1],[88,0,89,0],[88,1,89,1],[88,2,88,3],[88,7,88,8],[94,0,94,1],[96,0,97,0],[96,1,97,1],[96,2,96,3],[96,7,96,8],[112,0,112,1],[105,7,105,8],[103,0,103,1],[105,0,106,0],[105,1,106,1],[105,2,105,3]]}
[" KWARTAALSTAAT Wlz 2019 2e KWARTAAL - Wlz-REGIO"]
[{"$f":"CONCATENATE(\" UZOVI: \",NAW_gegevens!naw_uzovi_zorgkantoor,\"   Wlz-regio: \",NAW_gegevens!naw_naam_zorgkantoor,\"   Wlz-uitvoerder: \",NAW_gegevens!$B$6,)","v":" UZOVI:    Wlz-regio:    Wlz-uitvoerder: "}]
[]
[" SPECIFICATIES ZORGKOSTEN EN PRODUCTIE, VIA CAK"]
[" ZORGZWAARTEPAKKET VOLLEDIG PAKKET THUIS VERPLEGING EN VERZORGING"]
[" ZZP VPT VERPLEGING EN VERZORGING, INCLUSIEF DAGBESTEDING","NZA- code","REALISATIE",null,null,null,null,"BR/REG-19121c (actief)"]
[null,null,"AANTAL","BEDRAG",null,null,null,"Niet toegelaten","Toegelaten"]
[" Beschut wonen met enige begeleiding","1VV",null,null,null,{"$f":"IF(OR(NOT(ISNUMBER(C8)),NOT(ISNUMBER(D8)),C8=0,D8=0),\"\",IF(D8/C8<H8,\"REALISATIE: De gemiddelde kosten zijn lager dan het laagste tarief\",IF(D8/C8>I8,\"REALISATIE: De gemiddelde kosten zijn hoger dan het hoogste tarief\",\"\")))","v":""},null,70.87,70.87]
[" Beschut wonen met begeleiding en verzorging","2VV",null,null,null,{"$f":"IF(OR(NOT(ISNUMBER(C9)),NOT(ISNUMBER(D9)),C9=0,D9=0),\"\",IF(D9/C9<H9,\"REALISATIE: De gemiddelde kosten zijn lager dan het laagste tarief\",IF(D9/C9>I9,\"REALISATIE: De gemiddelde kosten zijn hoger dan het hoogste tarief\",\"\")))","v":""},null,93.85,93.85]
[" Beschut wonen met begeleiding en intensieve verzorging","3VV",null,null,null,"",null,124.29,146.31]
[" Beschut wonen met intensieve begeleiding en uitgebreide verzorging","4VV",null,null,null,"",null,133.83000000000001,156.44999999999999]
[" Beschermd wonen met intensieve dementiezorg","5VV",null,null,null,"",null,184.08,208.48]
[" Beschermd wonen met intensieve verzorging en verpleging","6VV",null,null,null,"",null,184.44,208.83]
[" Beschermd wonen met zeer intensieve zorg, vanwege specifieke aandoeningen, met nadruk op begeleiding","7VV",null,null,null,"",null,215.67,248.6]
[" Beschermd wonen met zeer intensieve zorg, vanwege specifieke aandoeningen, met nadruk op verzorging/verpleging","8VV",null,null,null,"",null,249.59,282.45]
[" Herstelgerichte verpleging en verzorging","9BVV",null,null,null,"",null,178.75,245.85]
[" Beschermd verblijf met intensieve palliatief-terminale zorg","10VV",null,null,null,"",null,272.35000000000002,305.32]
[" TOTAAL ZZP VPT VERPLEGING EN VERZORGING, INCLUSIEF DAGBESTEDING",null,null,{"$f":"SUM(D8:D17)","v":0}]
[]
[" ZORGZWAARTEPAKKET VOLLEDIG PAKKET THUIS GEHANDICAPTENZORG"]
[" ZZP VPT VERSTANDELIJK GEHANDICAPTEN, INCLUSIEF DAGBESTEDING","NZA- code","REALISATIE",null,null,null,null,"BR/REG-19121c (actief)"]
[null,null,"AANTAL","BEDRAG",null,null,null,"Niet toegelaten","Toegelaten"]
[" Wonen met enige begeleiding","1VG",null,null,null,{"$f":"IF(OR(NOT(ISNUMBER(C23)),NOT(ISNUMBER(D23)),C23=0,D23=0),\"\",IF(D23/C23<H23,\"REALISATIE: De gemiddelde kosten zijn lager dan het laagste tarief\",IF(D23/C23>I23,\"REALISATIE: De gemiddelde kosten zijn hoger dan het hoogste tarief\",\"\")))","v":""},null,96.42,96.42]
[" Wonen met begeleiding","2VG",null,null,null,{"$f":"IF(OR(NOT(ISNUMBER(C24)),NOT(ISNUMBER(D24)),C24=0,D24=0),\"\",IF(D24/C24<H24,\"REALISATIE: De gemiddelde kosten zijn lager dan het laagste tarief\",IF(D24/C24>I24,\"REALISATIE: De gemiddelde kosten zijn hoger dan het hoogste tarief\",\"\")))","v":""},null,107.76,107.76]
[" Wonen met begeleiding en verzorging","3VG",null,null,null,"",null,131.49,154.71]
[" Wonen met begeleiding en intensieve verzorging","4VG",null,null,null,"",null,151.54,179.37]
[" Wonen met intensieve begeleiding en intensieve verzorging","5VG",null,null,null,"",null,210.93,245.15]
[" Wonen met intensieve begeleiding, verzorging en gedragsregulering","6VG",null,null,null,"",null,175.6,208.76]
[" (Besloten) wonen met zeer intensieve begeleiding, verzorging en gedragsregulering","7VG",null,null,null,"",null,230.85,238.36]
[" Wonen met begeleiding en volledige verzorging en verpleging","8VG",null,null,null,"",null,259.8,302.04000000000002]
[" TOTAAL ZZP VPT VERSTANDELIJK GEHANDICAPTEN, INCLUSIEF DAGBESTEDING",null,null,{"$f":"SUM(D23:D30)","v":0}]
[]
[" ZZP VPT VERSTANDELIJK GEHANDICAPTEN, EXCLUSIEF DAGBESTEDING","NZA- code","REALISATIE",null,null,null,null,"BR/REG-19121c (actief)"]
[null,null,"AANTAL","BEDRAG",null,null,null,"Niet toegelaten","Toegelaten"]
[" Wonen met enige begeleiding","1VG",null,null,null,{"$f":"IF(OR(NOT(ISNUMBER(C35)),NOT(ISNUMBER(D35)),C35=0,D35=0),\"\",IF(D35/C35<H35,\"REALISATIE: De gemiddelde kosten zijn lager dan het laagste tarief\",IF(D35/C35>I35,\"REALISATIE: De gemiddelde kosten zijn hoger dan het hoogste tarief\",\"\")))","v":""},null,55.07,55.07]
[" Wonen met begeleiding","2VG",null,null,null,{"$f":"IF(OR(NOT(ISNUMBER(C36)),NOT(ISNUMBER(D36)),C36=0,D36=0),\"\",IF(D36/C36<H36,\"REALISATIE: De gemiddelde kosten zijn lager dan het laagste tarief\",IF(D36/C36>I36,\"REALISATIE: De gemiddelde kosten zijn hoger dan het hoogste tarief\",\"\")))","v":""},null,67.61,67.61]
[" Wonen met begeleiding en verzorging","3VG",null,null,null,"",null,93.29,115.47]
[" Wonen met begeleiding en intensieve verzorging","4VG",null,null,null,"",null,114.18,152.13]
[" Wonen met intensieve begeleiding en intensieve verzorging","5VG",null,null,null,"",null,152.72999999999999,184.48]
[" Wonen met intensieve begeleiding, verzorging en gedragsregulering","6VG",null,null,null,"",null,119.01,161.16]
[" (Besloten) wonen met zeer intensieve begeleiding, verzorging en gedragsregulering","7VG",null,null,null,"",null,165.87,239.28]
[" Wonen met begeleiding en volledige verzorging en verpleging","8VG",null,null,null,"",null,179.99,223.73]
[" TOTAAL ZZP VPT VERSTANDELIJK GEHANDICAPTEN, EXCLUSIEF DAGBESTEDING",null,null,{"$f":"SUM(D35:D42)","v":0}]
[]
[" ZZP VPT LICHT VERSTANDELIJK GEHANDICAPTEN, INCL. DAGBESTEDING","NZA- code","REALISATIE",null,null,null,null,"BR/REG-19121c (actief)"]
[null,null,"AANTAL","BEDRAG",null,null,null,"Niet toegelaten","Toegelaten"]
[" Wonen met enige behandeling en begeleiding","1LVG",null,null,null,{"$f":"IF(OR(NOT(ISNUMBER(C47)),NOT(ISNUMBER(D47)),C47=0,D47=0),\"\",IF(D47/C47<H47,\"REALISATIE: De gemiddelde kosten zijn lager dan het laagste tarief\",IF(D47/C47>I47,\"REALISATIE: De gemiddelde kosten zijn hoger dan het hoogste tarief\",\"\")))","v":""},null,181.71,181.71]
[" Wonen met behandeling en begeleiding","2LVG",null,null,null,{"$f":"IF(OR(NOT(ISNUMBER(C48)),NOT(ISNUMBER(D48)),C48=0,D48=0),\"\",IF(D48/C48<H48,\"REALISATIE: De gemiddelde kosten zijn lager dan het laagste tarief\",IF(D48/C48>I48,\"REALISATIE: De gemiddelde kosten zijn hoger dan het hoogste tarief\",\"\")))","v":""},null,223.03,223.03]
[" Wonen met intensieve behandeling en begeleiding, kleine groep","3LVG",null,null,null,"",null,288.07,288.07]
[" Wonen met zeer intensieve behandeling en begeleiding","4LVG",null,null,null,"",null,336.21,336.21]
[" Besloten wonen met zeer intensieve behandeling en begeleiding","5LVG",null,null,null,"",null,318.49,318.49]
[" TOTAAL ZZP VPT LICHT VERSTANDELIJK GEHANDICAPTEN, INCLUSIEF DAGBESTEDING",null,null,{"$f":"SUM(D47:D51)","v":0}]
[]
[" ZZP VPT STERK GEDRAGSGESTOORDE LICHT VERSTANDELIJK GEHANDICAPTEN, INCLUSIEF DAGBESTEDING","NZA- code","REALISATIE",null,null,null,null,"BR/REG-19121c (actief)"]
[null,null,"AANTAL","BEDRAG",null,null,null,"Niet toegelaten","Toegelaten"]
[" Behandeling in een SGLVG behandelcentrum","1SGLVG",null,null,null,{"$f":"IF(OR(NOT(ISNUMBER(C56)),NOT(ISNUMBER(D56)),C56=0,D56=0),\"\",IF(D56/C56<H56,\"REALISATIE: De gemiddelde kosten zijn lager dan het laagste tarief\",IF(D56/C56>I56,\"REALISATIE: De gemiddelde kosten zijn hoger dan het hoogste tarief\",\"\")))","v":""},null,348.95,348.95]
[" TOTAAL ZZP VPT STERK GEDRAGSGESTOORDE LICHT VERSTANDELIJK GEHANDICAPTEN, INCLUSIEF DAGBESTEDING",null,null,{"$f":"SUM(D56)","v":0}]
[]
[" ZZP VPT LICHAMELIJK GEHANDICAPTEN, INCLUSIEF DAGBESTEDING","NZA- code","REALISATIE",null,null,null,null,"BR/REG-19121c (actief)"]
[null,null,"AANTAL","BEDRAG",null,null,null,"Niet toegelaten","Toegelaten"]
[" Wonen met enige begeleiding en enige verzorging","1LG",null,null,null,{"$f":"IF(OR(NOT(ISNUMBER(C61)),NOT(ISNUMBER(D61)),C61=0,D61=0),\"\",IF(D61/C61<H61,\"REALISATIE: De gemiddelde kosten zijn lager dan het laagste tarief\",IF(D61/C61>I61,\"REALISATIE: De gemiddelde kosten zijn hoger dan het hoogste tarief\",\"\")))","v":""},null,137.49,137.49]
[" Wonen met begeleiding en enige verzorging","2LG",null,null,null,{"$f":"IF(OR(NOT(ISNUMBER(C62)),NOT(ISNUMBER(D62)),C62=0,D62=0),\"\",IF(D62/C62<H62,\"REALISATIE: De gemiddelde kosten zijn lager dan het laagste tarief\",IF(D62/C62>I62,\"REALISATIE: De gemiddelde kosten zijn hoger dan het hoogste tarief\",\"\")))","v":""},null,163.84,163.84]
[" Wonen met enige begeleiding en verzorging","3LG",null,null,null,"",null,150.46,170.02]
[" Wonen met begeleiding en verzorging","4LG",null,null,null,"",null,190.47,212.4]
[" Wonen met begeleiding en intensieve verzorging","5LG",null,null,null,"",null,200.74,237.1]
[" Wonen met intensieve begeleiding en intensieve verzorging","6LG",null,null,null,"",null,245.52,297.57]
[" Wonen met zeer intensieve begeleiding en zeer intensieve verzorging","7LG",null,null,null,"",null,273.77999999999997,308.93]
[" TOTAAL ZZP VPT LICHAMELIJK GEHANDICAPTEN, INCLUSIEF DAGBESTEDING",null,null,{"$f":"SUM(D61:D67)","v":0}]
[]
[" ZZP VPT LICHAMELIJK GEHANDICAPTEN, EXCLUSIEF DAGBESTEDING","NZA- code","REALISATIE",null,null,null,null,"BR/REG-19121c (actief)"]
[null,null,"AANTAL","BEDRAG",null,null,null,"Niet toegelaten","Toegelaten"]
[" Wonen met enige begeleiding en enige verzorging","1LG",null,null,null,{"$f":"IF(OR(NOT(ISNUMBER(C72)),NOT(ISNUMBER(D72)),C72=0,D72=0),\"\",IF(D72/C72<H72,\"REALISATIE: De gemiddelde kosten zijn lager dan het laagste tarief\",IF(D72/C72>I72,\"REALISATIE: De gemiddelde kosten zijn hoger dan het hoogste tarief\",\"\")))","v":""},null,80.180000000000007,80.180000000000007]
[" Wonen met begeleiding en enige verzorging","2LG",null,null,null,{"$f":"IF(OR(NOT(ISNUMBER(C73)),NOT(ISNUMBER(D73)),C73=0,D73=0),\"\",IF(D73/C73<H73,\"REALISATIE: De gemiddelde kosten zijn lager dan het laagste tarief\",IF(D73/C73>I73,\"REALISATIE: De gemiddelde kosten zijn hoger dan het hoogste tarief\",\"\")))","v":""},null,116.96,116.96]
[" Wonen met enige begeleiding en verzorging","3LG",null,null,null,"",null,90.66,133.97999999999999]
[" Wonen met begeleiding en verzorging","4LG",null,null,null,"",null,142.11000000000001,178.62]
[" Wonen met begeleiding en intensieve verzorging","5LG",null,null,null,"",null,143.71,181.07]
[" Wonen met intensieve begeleiding en intensieve verzorging","6LG",null,null,null,"",null,199.56,250.41]
[" Wonen met zeer intensieve begeleiding en zeer intensieve verzorging","7LG",null,null,null,"",null,226.16,280.49]
[" TOTAAL ZZP VPT LICHAMELIJK GEHANDICAPTEN, EXCLUSIEF DAGBESTEDING",null,null,{"$f":"SUM(D72:D78)","v":0}]
[]
[" ZZP VPT AUDITIEF EN COMMUNICATIEF GEHANDICAPTEN, INCLUSIEF DAGBESTEDING","NZA- code","REALISATIE",null,null,null,null,"BR/REG-19121c (actief)"]
[null,null,"AANTAL","BEDRAG",null,null,null,"Niet toegelaten","Toegelaten"]
[" Wonen met begeleiding en enige verzorging","1ZGAUD",null,null,null,{"$f":"IF(OR(NOT(ISNUMBER(C83)),NOT(ISNUMBER(D83)),C83=0,D83=0),\"\",IF(D83/C83<H83,\"REALISATIE: De gemiddelde kosten zijn lager dan het laagste tarief\",IF(D83/C83>I83,\"REALISATIE: De gemiddelde kosten zijn hoger dan het hoogste tarief\",\"\")))","v":""},null,173.86,181.28]
[" Wonen met intensieve begeleiding en verzorging","2ZGAUD",null,null,null,{"$f":"IF(OR(NOT(ISNUMBER(C84)),NOT(ISNUMBER(D84)),C84=0,D84=0),\"\",IF(D84/C84<H84,\"REALISATIE: De gemiddelde kosten zijn lager dan het laagste tarief\",IF(D84/C84>I84,\"REALISATIE: De gemiddelde kosten zijn hoger dan het hoogste tarief\",\"\")))","v":""},null,325.66000000000003,357.72]
[" Wonen met intensieve begeleiding en intensieve verzorging","3ZGAUD",null,null,null,"",null,358.84,422.19]
[" Wonen met intensieve begeleiding en enige verzorging","4ZGAUD",null,null,null,"",null,225.79,249.1]
[" TOTAAL ZZP VPT AUDITIEF EN COMMUNICATIEF GEHANDICAPTEN, INCLUSIEF DAGBESTEDING",null,null,{"$f":"SUM(D83:D86)","v":0}]
[]
[" ZZP VPT AUDITIEF EN COMMUNICATIEF GEHANDICAPTEN, EXCLUSIEF DAGBESTEDING","NZA- code","REALISATIE",null,null,null,null,"BR/REG-19121c (actief)"]
[null,null,"AANTAL","BEDRAG",null,null,null,"Niet toegelaten","Toegelaten"]
[" Wonen met begeleiding en enige verzorging","1ZGAUD",null,null,null,{"$f":"IF(OR(NOT(ISNUMBER(C91)),NOT(ISNUMBER(D91)),C91=0,D91=0),\"\",IF(D91/C91<H91,\"REALISATIE: De gemiddelde kosten zijn lager dan het laagste tarief\",IF(D91/C91>I91,\"REALISATIE: De gemiddelde kosten zijn hoger dan het hoogste tarief\",\"\")))","v":""},null,135.04,127.51]
[" Wonen met intensieve begeleiding en verzorging","2ZGAUD",null,null,null,{"$f":"IF(OR(NOT(ISNUMBER(C92)),NOT(ISNUMBER(D92)),C92=0,D92=0),\"\",IF(D92/C92<H92,\"REALISATIE: De gemiddelde kosten zijn lager dan het laagste tarief\",IF(D92/C92>I92,\"REALISATIE: De gemiddelde kosten zijn hoger dan het hoogste tarief\",\"\")))","v":""},null,275.89999999999998,280.23]
[" Wonen met intensieve begeleiding en intensieve verzorging","3ZGAUD",null,null,null,"",null,315.83999999999997,322.13]
[" Wonen met intensieve begeleiding en enige verzorging","4ZGAUD",null,null,null,"",null,162.69999999999999,186.02]
[" TOTAAL ZZP VPT AUDITIEF EN COMMUNICATIEF GEHANDICAPTEN, EXCLUSIEF DAGBESTEDING",null,null,{"$f":"SUM(D91:D94)","v":0}]
[]
[" ZZP VPT VISUEEL GEHANDICAPTEN, INCLUSIEF DAGBESTEDING","NZA- code","REALISATIE",null,null,null,null,"BR/REG-19121c (actief)"]
[null,null,"AANTAL","BEDRAG",null,null,null,"Niet toegelaten","Toegelaten"]
[" Wonen met enige begeleiding en enige verzorging","1ZGVIS",null,null,null,{"$f":"IF(OR(NOT(ISNUMBER(C99)),NOT(ISNUMBER(D99)),C99=0,D99=0),\"\",IF(D99/C99<H99,\"REALISATIE: De gemiddelde kosten zijn lager dan het laagste tarief\",IF(D99/C99>I99,\"REALISATIE: De gemiddelde kosten zijn hoger dan het hoogste tarief\",\"\")))","v":""},null,128.65,128.65]
[" Wonen met begeleiding en enige verzorging","2ZGVIS",null,null,null,{"$f":"IF(OR(NOT(ISNUMBER(C100)),NOT(ISNUMBER(D100)),C100=0,D100=0),\"\",IF(D100/C100<H100,\"REALISATIE: De gemiddelde kosten zijn lager dan het laagste tarief\",IF(D100/C100>I100,\"REALISATIE: De gemiddelde kosten zijn hoger dan het hoogste tarief\",\"\")))","v":""},null,157.12,157.12]
[" Wonen met intensieve begeleiding en verzorging","3ZGVIS",null,null,null,"",null,181.81,195.81]
[" Wonen met intensieve begeleiding en intensieve verzorging","4ZGVIS",null,null,null,"",null,232.75,250.64]
[" Wonen met zeer intensieve begeleiding en zeer intensieve verzorging","5ZGVIS",null,null,null,"",null,251.72,273.91000000000003]
[" TOTAAL ZZP VPT VISUEEL GEHANDICAPTEN, INCLUSIEF DAGBESTEDING",null,null,{"$f":"SUM(D99:D103)","v":0}]
[]
[" ZZP VPT VISUEEL GEHANDICAPTEN, EXCLUSIEF DAGBESTEDING","NZA- code","REALISATIE",null,null,null,null,"BR/REG-19121c (actief)"]
[null,null,"AANTAL","BEDRAG",null,null,null,"Niet toegelaten","Toegelaten"]
[" Wonen met enige begeleiding en enige verzorging","1ZGVIS",null,null,null,{"$f":"IF(OR(NOT(ISNUMBER(C108)),NOT(ISNUMBER(D108)),C108=0,D108=0),\"\",IF(D108/C108<H108,\"REALISATIE: De gemiddelde kosten zijn lager dan het laagste tarief\",IF(D108/C108>I108,\"REALISATIE: De gemiddelde kosten zijn hoger dan het hoogste tarief\",\"\")))","v":""},null,74.63,74.63]
[" Wonen met begeleiding en enige verzorging","2ZGVIS",null,null,null,{"$f":"IF(OR(NOT(ISNUMBER(C109)),NOT(ISNUMBER(D109)),C109=0,D109=0),\"\",IF(D109/C109<H109,\"REALISATIE: De gemiddelde kosten zijn lager dan het laagste tarief\",IF(D109/C109>I109,\"REALISATIE: De gemiddelde kosten zijn hoger dan het hoogste tarief\",\"\")))","v":""},null,110.64,110.64]
[" Wonen met intensieve begeleiding en verzorging","3ZGVIS",null,null,null,"",null,135.34,149.32]
[" Wonen met intensieve begeleiding en intensieve verzorging","4ZGVIS",null,null,null,"",null,171.65,189.53]
[" Wonen met zeer intensieve begeleiding en zeer intensieve verzorging","5ZGVIS",null,null,null,"",null,188.72,210.91]
[" TOTAAL ZZP VPT VISUEEL GEHANDICAPTEN, EXCLUSIEF DAGBESTEDING",null,null,{"$f":"SUM(D108:D112)","v":0}]

{"sheet":"Dagbesteding en vervoer","index":9,"n_rows":28,"n_cols":8,"rows_kept":28,"cut":false,"hidden":false,"merged":[[5,0,6,0],[16,0,17,0],[25,0,26,0],[5,6,5,7],[16,6,16,7],[25,1,25,2],[5,1,5,2],[16,1,16,2]]}
[" KWARTAALSTAAT Wlz 2019 2e KWARTAAL - Wlz-REGIO"]
[{"$f":"CONCATENATE(\" UZOVI: \",NAW_gegevens!naw_uzovi_zorgkantoor,\"   Wlz-regio: \",NAW_gegevens!naw_naam_zorgkantoor,\"   Wlz-uitvoerder: \",NAW_gegevens!$B$6,)","v":" UZOVI:    Wlz-regio:    Wlz-uitvoerder: "}]
[]
[" SPECIFICATIES ZORGKOSTEN EN PRODUCTIE, VIA CAK"]
[" ZORG ZONDER VERBLIJF, DAGBESTEDING"]
[" CATEGORIE","REALISATIE",null,null,null,null,"BR/REG-19120a (actief)"]
[null,"AANTAL","BEDRAG",null,null,null,"Laagste tarief","Hoogste tarief"]
[" Dagbesteding extramuraal Ouderen (TOTAAL)",null,null,null,{"$f":"IF(OR(NOT(ISNUMBER(B8)),NOT(ISNUMBER(C8)),B8=0,C8=0),\"\",IF(C8/B8<G8,\"REALISATIE: De gemiddelde kosten zijn lager dan het laagste tarief\",IF(C8/B8>H8,\"REALISATIE: De gemiddelde kosten zijn hoger dan het hoogste tarief\",\"\")))","v":""},null,39.4,73.069999999999993]
[" Dagbesteding extramuraal VG (TOTAAL)",null,null,null,{"$f":"IF(OR(NOT(ISNUMBER(B9)),NOT(ISNUMBER(C9)),B9=0,C9=0),\"\",IF(C9/B9<G9,\"REALISATIE: De gemiddelde kosten zijn lager dan het laagste tarief\",IF(C9/B9>H9,\"REALISATIE: De gemiddelde kosten zijn hoger dan het hoogste tarief\",\"\")))","v":""},null,37.32,177.37]
[" Dagbesteding extramuraal LG (TOTAAL)",null,null,null,"",null,53.36,106.72]
[" Dagbesteding extramuraal ZG auditief (TOTAAL)",null,null,null,"",null,53.52,120.68]
[" Dagbesteding extramuraal ZG visueel (TOTAAL)",null,null,null,"",null,41.87,98.13]
[" TOTAAL ZORG ZONDER VERBLIJF, DAGBESTEDING",null,{"$f":"SUM(C8:C12)","v":0}]
[" Vervoer dagbesteding zonder verblijf (TOTAAL)",null,null,null,null,null,7.35,66.069999999999993]
[]
[" ZORG MET VERBLIJF, GEHANDICAPTENZORG, DAGBESTEDING"]
[" CATEGORIE","REALISATIE",null,null,null,null,"BR/REG-19121c (actief)"]
[null,"AANTAL","BEDRAG",null,null,null,"Laagste tarief","Hoogste tarief"]
[" Dagbesteding VG (TOTAAL)",null,null,null,{"$f":"IF(OR(NOT(ISNUMBER(B19)),NOT(ISNUMBER(C19)),B19=0,C19=0),\"\",IF(C19/B19<G19,\"REALISATIE: De gemiddelde kosten zijn lager dan het laagste tarief\",IF(C19/B19>H19,\"REALISATIE: De gemiddelde kosten zijn hoger dan het hoogste tarief\",\"\")))","v":""},null,32.049999999999997,86.92]
[" Dagbesteding LG (TOTAAL)",null,null,null,{"$f":"IF(OR(NOT(ISNUMBER(B20)),NOT(ISNUMBER(C20)),B20=0,C20=0),\"\",IF(C20/B20<G20,\"REALISATIE: De gemiddelde kosten zijn lager dan het laagste tarief\",IF(C20/B20>H20,\"REALISATIE: De gemiddelde kosten zijn hoger dan het hoogste tarief\",\"\")))","v":""},null,48,59.58]
[" Dagbesteding ZG auditief (TOTAAL)",null,null,null,"",null,39.700000000000003,58.58]
[" Dagbesteding ZG visueel (TOTAAL)",null,null,null,"",null,35.799999999999997,58.58]
[" TOTAAL ZORG MET VERBLIJF, GEHANDICAPTENZORG, DAGBESTEDING",null,{"$f":"SUM(C19:C22)","v":0}]
[]
[" ZORG MET VERBLIJF, VERVOER"]
[" CATEGORIE","REALISATIE"]
[null,"AANTAL","BEDRAG"]
[" Vervoer dagbesteding met verblijf gehandicaptenzorg (TOTAAL)",null,null,null,{"$f":"IF(OR(NOT(ISNUMBER(B28)),NOT(ISNUMBER(C28)),B28=0,C28=0),\"\",IF(C28/B28<G28,\"REALISATIE: De gemiddelde kosten zijn lager dan het laagste tarief\",IF(C28/B28>H28,\"REALISATIE: De gemiddelde kosten zijn hoger dan het hoogste tarief\",\"\")))","v":""},null,7.35,66.069999999999993]

{"sheet":"Beheerskosten","index":10,"n_rows":128,"n_cols":6,"rows_kept":128,"cut":false,"hidden":false,"merged":[[5,0,5,3],[6,0,6,3],[7,0,7,3],[8,0,8,3],[9,0,9,3]]}
[" KWARTAALSTAAT Wlz 2019 2e KWARTAAL - Wlz-REGIO"]
[{"$f":"CONCATENATE(\" UZOVI: \",NAW_gegevens!naw_uzovi_zorgkantoor,\"   Wlz-regio: \",NAW_gegevens!naw_naam_zorgkantoor,\"   Wlz-uitvoerder: \",NAW_gegevens!$B$6,)","v":" UZOVI:    Wlz-regio:    Wlz-uitvoerder: "}]
[]
[]
[" SPECIFICATIE BEHEERSKOSTEN"]
[" TOTAAL BEHEERSKOSTEN (INCLUSIEF AZR)",null,null,null,"BEDRAG"]
[" Kosten intern personeel"]
[" Kosten extern personeel"]
[" Overige beheerskosten"]
[" TOTAAL BEHEERSKOSTEN",null,null,null,{"$f":"SUM(E7:E9)","v":0}]
[]
[]
[]
[]
[]
[]
[]
[]
[]
[]
[]
[]
[]
[]
[]
[]
[]
[]
[]
[]
[]
[]
[]
[]
[]
[]
[]
[]
[]
[]
[]
[]
[]
[]
[]
[]
[]
[]
[]
[]
[]
[]
[]
[]
[]
[]
[]
[]
[]
[]
[]
[]
[]
[]
[]
[]
[]
[]
[]
[]
[]
[]
[]
[]
[]
[]
[null,null,null,null,null,"BR/REG-18143c (actief)"]
[]
[]
[]
[]
[]
[]
[]
[]
[]
[]
[]
[]
[]
[]
[]
[]
[null,null,null,null,null,"BR/REG-18143c (actief)"]
[]
[]
[]
[]
[]
[]
[]
[]
[]
[]
[]
[]
[]
[]
[]
[]
[null,null,null,null,null,"BR/REG-18143c (actief)"]
[]
[]
[]
[]
[]
[]
[]
[]
[]
[]
[]
[]
[]
[]
[]
[]
[null,null,null,null,null,"BR/REG-18143c (actief)"]

{"sheet":"Blad1","index":11,"n_rows":524,"n_cols":6,"rows_kept":524,"cut":false,"hidden":true,"merged":[]}
[70128538,{"$f":"'Volledig pakket thuis'!$C$35","v":0},null,null,null,"*='Volledig pakket thuis'!$C$35"]
[70128539,{"$f":"'Volledig pakket thuis'!$D$35","v":0},null,null,null,"*='Volledig pakket thuis'!$D$35"]
[70128540,{"$f":"'Volledig pakket thuis'!$C$36","v":0},null,null,null,"*='Volledig pakket thuis'!$C$36"]
[70128541,{"$f":"'Volledig pakket thuis'!$D$36","v":0},null,null,null,"*='Volledig pakket thuis'!$D$36"]
[70128542,{"$f":"'Volledig pakket thuis'!$C$37","v":0},null,null,null,"*='Volledig pakket thuis'!$C$37"]
[70128543,{"$f":"'Volledig pakket thuis'!$D$37","v":0},null,null,null,"*='Volledig pakket thuis'!$D$37"]
[70128544,{"$f":"'Volledig pakket thuis'!$C$38","v":0},null,null,null,"*='Volledig pakket thuis'!$C$38"]
[70128545,{"$f":"'Volledig pakket thuis'!$D$38","v":0},null,null,null,"*='Volledig pakket thuis'!$D$38"]
[70128546,{"$f":"'Volledig pakket thuis'!$C$39","v":0},null,null,null,"*='Volledig pakket thuis'!$C$39"]
[70128547,{"$f":"'Volledig pakket thuis'!$D$39","v":0},null,null,null,"*='Volledig pakket thuis'!$D$39"]
[70128548,{"$f":"'Volledig pakket thuis'!$C$40","v":0},null,null,null,"*='Volledig pakket thuis'!$C$40"]
[70128549,{"$f":"'Volledig pakket thuis'!$D$40","v":0},null,null,null,"*='Volledig pakket thuis'!$D$40"]
[70128550,{"$f":"'Volledig pakket thuis'!$C$41","v":0},null,null,null,"*='Volledig pakket thuis'!$C$41"]
[70128551,{"$f":"'Volledig pakket thuis'!$D$41","v":0},null,null,null,"*='Volledig pakket thuis'!$D$41"]
[70128552,{"$f":"'Volledig pakket thuis'!$C$42","v":0},null,null,null,"*='Volledig pakket thuis'!$C$42"]
[70128553,{"$f":"'Volledig pakket thuis'!$D$42","v":0},null,null,null,"*='Volledig pakket thuis'!$D$42"]
[70128554,{"$f":"'Volledig pakket thuis'!$C$23","v":0},null,null,null,"*='Volledig pakket thuis'!$C$23"]
[70128555,{"$f":"'Volledig pakket thuis'!$D$23","v":0},null,null,null,"*='Volledig pakket thuis'!$D$23"]
[70128556,{"$f":"'Volledig pakket thuis'!$C$24","v":0},null,null,null,"*='Volledig pakket thuis'!$C$24"]
[70128557,{"$f":"'Volledig pakket thuis'!$D$24","v":0},null,null,null,"*='Volledig pakket thuis'!$D$24"]
[70128558,{"$f":"'Volledig pakket thuis'!$C$25","v":0},null,null,null,"*='Volledig pakket thuis'!$C$25"]
[70128559,{"$f":"'Volledig pakket thuis'!$D$25","v":0},null,null,null,"*='Volledig pakket thuis'!$D$25"]
[70128560,{"$f":"'Volledig pakket thuis'!$C$26","v":0},null,null,null,"*='Volledig pakket thuis'!$C$26"]
[70128561,{"$f":"'Volledig pakket thuis'!$D$26","v":0},null,null,null,"*='Volledig pakket thuis'!$D$26"]
[70128562,{"$f":"'Volledig pakket thuis'!$C$27","v":0},null,null,null,"*='Volledig pakket thuis'!$C$27"]
[70128563,{"$f":"'Volledig pakket thuis'!$D$27","v":0},null,null,null,"*='Volledig pakket thuis'!$D$27"]
[70128564,{"$f":"'Volledig pakket thuis'!$C$28","v":0},null,null,null,"*='Volledig pakket thuis'!$C$28"]
[70128565,{"$f":"'Volledig pakket thuis'!$D$28","v":0},null,null,null,"*='Volledig pakket thuis'!$D$28"]
[70128566,{"$f":"'Volledig pakket thuis'!$C$29","v":0},null,null,null,"*='Volledig pakket thuis'!$C$29"]
[70128567,{"$f":"'Volledig pakket thuis'!$D$29","v":0},null,null,null,"*='Volledig pakket thuis'!$D$29"]
[70128568,{"$f":"'Volledig pakket thuis'!$C$30","v":0},null,null,null,"*='Volledig pakket thuis'!$C$30"]
[70128569,{"$f":"'Volledig pakket thuis'!$D$30","v":0},null,null,null,"*='Volledig pakket thuis'!$D$30"]
[70128570,{"$f":"'Volledig pakket thuis'!$C$47","v":0},null,null,null,"*='Volledig pakket thuis'!$C$47"]
[70128571,{"$f":"'Volledig pakket thuis'!$D$47","v":0},null,null,null,"*='Volledig pakket thuis'!$D$47"]
[70128572,{"$f":"'Volledig pakket thuis'!$C$48","v":0},null,null,null,"*='Volledig pakket thuis'!$C$48"]
[70128573,{"$f":"'Volledig pakket thuis'!$D$48","v":0},null,null,null,"*='Volledig pakket thuis'!$D$48"]
[70128574,{"$f":"'Volledig pakket thuis'!$C$49","v":0},null,null,null,"*='Volledig pakket thuis'!$C$49"]
[70128575,{"$f":"'Volledig pakket thuis'!$D$49","v":0},null,null,null,"*='Volledig pakket thuis'!$D$49"]
[70128576,{"$f":"'Volledig pakket thuis'!$C$50","v":0},null,null,null,"*='Volledig pakket thuis'!$C$50"]
[70128577,{"$f":"'Volledig pakket thuis'!$D$50","v":0},null,null,null,"*='Volledig pakket thuis'!$D$50"]
[70128578,{"$f":"'Volledig pakket thuis'!$C$51","v":0},null,null,null,"*='Volledig pakket thuis'!$C$51"]
[70128579,{"$f":"'Volledig pakket thuis'!$D$51","v":0},null,null,null,"*='Volledig pakket thuis'!$D$51"]
[70128580,{"$f":"'Volledig pakket thuis'!$C$56","v":0},null,null,null,"*='Volledig pakket thuis'!$C$56"]
[70128581,{"$f":"'Volledig pakket thuis'!$D$56","v":0},null,null,null,"*='Volledig pakket thuis'!$D$56"]
[70128582,{"$f":"'Volledig pakket thuis'!$C$61","v":0},null,null,null,"*='Volledig pakket thuis'!$C$61"]
[70128583,{"$f":"'Volledig pakket thuis'!$D$61","v":0},null,null,null,"*='Volledig pakket thuis'!$D$61"]
[70128584,{"$f":"'Volledig pakket thuis'!$C$62","v":0},null,null,null,"*='Volledig pakket thuis'!$C$62"]
[70128585,{"$f":"'Volledig pakket thuis'!$D$62","v":0},null,null,null,"*='Volledig pakket thuis'!$D$62"]
[70128586,{"$f":"'Volledig pakket thuis'!$C$63","v":0},null,null,null,"*='Volledig pakket thuis'!$C$63"]
[70128587,{"$f":"'Volledig pakket thuis'!$D$63","v":0},null,null,null,"*='Volledig pakket thuis'!$D$63"]
[70128588,{"$f":"'Volledig pakket thuis'!$C$64","v":0},null,null,null,"*='Volledig pakket thuis'!$C$64"]
[70128589,{"$f":"'Volledig pakket thuis'!$D$64","v":0},null,null,null,"*='Volledig pakket thuis'!$D$64"]
[70128590,{"$f":"'Volledig pakket thuis'!$C$65","v":0},null,null,null,"*='Volledig pakket thuis'!$C$65"]
[70128591,{"$f":"'Volledig pakket thuis'!$D$65","v":0},null,null,null,"*='Volledig pakket thuis'!$D$65"]
[70128592,{"$f":"'Volledig pakket thuis'!$C$66","v":0},null,null,null,"*='Volledig pakket thuis'!$C$66"]
[70128593,{"$f":"'Volledig pakket thuis'!$D$66","v":0},null,null,null,"*='Volledig pakket thuis'!$D$66"]
[70128594,{"$f":"'Volledig pakket thuis'!$C$67","v":0},null,null,null,"*='Volledig pakket thuis'!$C$67"]
[70128595,{"$f":"'Volledig pakket thuis'!$D$67","v":0},null,null,null,"*='Volledig pakket thuis'!$D$67"]
[70128596,{"$f":"'Volledig pakket thuis'!$C$72","v":0},null,null,null,"*='Volledig pakket thuis'!$C$72"]
[70128597,{"$f":"'Volledig pakket thuis'!$D$72","v":0},null,null,null,"*='Volledig pakket thuis'!$D$72"]
[70128598,{"$f":"'Volledig pakket thuis'!$C$73","v":0},null,null,null,"*='Volledig pakket thuis'!$C$73"]
[70128599,{"$f":"'Volledig pakket thuis'!$D$73","v":0},null,null,null,"*='Volledig pakket thuis'!$D$73"]
[70128600,{"$f":"'Volledig pakket thuis'!$C$74","v":0},null,null,null,"*='Volledig pakket thuis'!$C$74"]
[70128601,{"$f":"'Volledig pakket thuis'!$D$74","v":0},null,null,null,"*='Volledig pakket thuis'!$D$74"]
[70128602,{"$f":"'Volledig pakket thuis'!$C$75","v":0},null,null,null,"*='Volledig pakket thuis'!$C$75"]
[70128603,{"$f":"'Volledig pakket thuis'!$D$75","v":0},null,null,null,"*='Volledig pakket thuis'!$D$75"]
[70128604,{"$f":"'Volledig pakket thuis'!$C$76","v":0},null,null,null,"*='Volledig pakket thuis'!$C$76"]
[70128605,{"$f":"'Volledig pakket thuis'!$D$76","v":0},null,null,null,"*='Volledig pakket thuis'!$D$76"]
[70128606,{"$f":"'Volledig pakket thuis'!$C$77","v":0},null,null,null,"*='Volledig pakket thuis'!$C$77"]
[70128607,{"$f":"'Volledig pakket thuis'!$D$77","v":0},null,null,null,"*='Volledig pakket thuis'!$D$77"]
[70128608,{"$f":"'Volledig pakket thuis'!$C$78","v":0},null,null,null,"*='Volledig pakket thuis'!$C$78"]
[70128609,{"$f":"'Volledig pakket thuis'!$D$78","v":0},null,null,null,"*='Volledig pakket thuis'!$D$78"]
[70128610,{"$f":"'Volledig pakket thuis'!$C$83","v":0},null,null,null,"*='Volledig pakket thuis'!$C$83"]
[70128611,{"$f":"'Volledig pakket thuis'!$D$83","v":0},null,null,null,"*='Volledig pakket thuis'!$D$83"]
[70128612,{"$f":"'Volledig pakket thuis'!$C$84","v":0},null,null,null,"*='Volledig pakket thuis'!$C$84"]
[70128613,{"$f":"'Volledig pakket thuis'!$D$84","v":0},null,null,null,"*='Volledig pakket thuis'!$D$84"]
[70128614,{"$f":"'Volledig pakket thuis'!$C$85","v":0},null,null,null,"*='Volledig pakket thuis'!$C$85"]
[70128615,{"$f":"'Volledig pakket thuis'!$D$85","v":0},null,null,null,"*='Volledig pakket thuis'!$D$85"]
[70128616,{"$f":"'Volledig pakket thuis'!$C$86","v":0},null,null,null,"*='Volledig pakket thuis'!$C$86"]
[70128617,{"$f":"'Volledig pakket thuis'!$D$86","v":0},null,null,null,"*='Volledig pakket thuis'!$D$86"]
[70128618,{"$f":"'Volledig pakket thuis'!$C$91","v":0},null,null,null,"*='Volledig pakket thuis'!$C$91"]
[70128619,{"$f":"'Volledig pakket thuis'!$D$91","v":0},null,null,null,"*='Volledig pakket thuis'!$D$91"]
[70128620,{"$f":"'Volledig pakket thuis'!$C$92","v":0},null,null,null,"*='Volledig pakket thuis'!$C$92"]
[70128621,{"$f":"'Volledig pakket thuis'!$D$92","v":0},null,null,null,"*='Volledig pakket thuis'!$D$92"]
[70128622,{"$f":"'Volledig pakket thuis'!$C$93","v":0},null,null,null,"*='Volledig pakket thuis'!$C$93"]
[70128623,{"$f":"'Volledig pakket thuis'!$D$93","v":0},null,null,null,"*='Volledig pakket thuis'!$D$93"]
[70128624,{"$f":"'Volledig pakket thuis'!$C$94","v":0},null,null,null,"*='Volledig pakket thuis'!$C$94"]
[70128625,{"$f":"'Volledig pakket thuis'!$D$94","v":0},null,null,null,"*='Volledig pakket thuis'!$D$94"]
[70128626,{"$f":"'Volledig pakket thuis'!$C$99","v":0},null,null,null,"*='Volledig pakket thuis'!$C$99"]
[70128627,{"$f":"'Volledig pakket thuis'!$D$99","v":0},null,null,null,"*='Volledig pakket thuis'!$D$99"]
[70128628,{"$f":"'Volledig pakket thuis'!$C$100","v":0},null,null,null,"*='Volledig pakket thuis'!$C$100"]
[70128629,{"$f":"'Volledig pakket thuis'!$D$100","v":0},null,null,null,"*='Volledig pakket thuis'!$D$100"]
[70128630,{"$f":"'Volledig pakket thuis'!$C$101","v":0},null,null,null,"*='Volledig pakket thuis'!$C$101"]
[70128631,{"$f":"'Volledig pakket thuis'!$D$101","v":0},null,null,null,"*='Volledig pakket thuis'!$D$101"]
[70128632,{"$f":"'Volledig pakket thuis'!$C$102","v":0},null,null,null,"*='Volledig pakket thuis'!$C$102"]
[70128633,{"$f":"'Volledig pakket thuis'!$D$102","v":0},null,null,null,"*='Volledig pakket thuis'!$D$102"]
[70128634,{"$f":"'Volledig pakket thuis'!$C$103","v":0},null,null,null,"*='Volledig pakket thuis'!$C$103"]
[70128635,{"$f":"'Volledig pakket thuis'!$D$103","v":0},null,null,null,"*='Volledig pakket thuis'!$D$103"]
[70128636,{"$f":"'Volledig pakket thuis'!$C$108","v":0},null,null,null,"*='Volledig pakket thuis'!$C$108"]
[70128637,{"$f":"'Volledig pakket thuis'!$D$108","v":0},null,null,null,"*='Volledig pakket thuis'!$D$108"]
[70128638,{"$f":"'Volledig pakket thuis'!$C$109","v":0},null,null,null,"*='Volledig pakket thuis'!$C$109"]
[70128639,{"$f":"'Volledig pakket thuis'!$D$109","v":0},null,null,null,"*='Volledig pakket thuis'!$D$109"]
[70128640,{"$f":"'Volledig pakket thuis'!$C$110","v":0},null,null,null,"*='Volledig pakket thuis'!$C$110"]
[70128641,{"$f":"'Volledig pakket thuis'!$D$110","v":0},null,null,null,"*='Volledig pakket thuis'!$D$110"]
[70128642,{"$f":"'Volledig pakket thuis'!$C$111","v":0},null,null,null,"*='Volledig pakket thuis'!$C$111"]
[70128643,{"$f":"'Volledig pakket thuis'!$D$111","v":0},null,null,null,"*='Volledig pakket thuis'!$D$111"]
[70128644,{"$f":"'Volledig pakket thuis'!$C$112","v":0},null,null,null,"*='Volledig pakket thuis'!$C$112"]
[70128645,{"$f":"'Volledig pakket thuis'!$D$112","v":0},null,null,null,"*='Volledig pakket thuis'!$D$112"]
[70128441,{"$f":"'Zorg via CAK - AK en ZMV'!$D$8","v":0},null,null,null,"*='Zorg via CAK - AK en ZMV'!$D$8"]
[70128442,{"$f":"'Zorg via CAK - AK en ZMV'!$E$8","v":0},null,null,null,"*='Zorg via CAK - AK en ZMV'!$E$8"]
[70128443,{"$f":"'Zorg via CAK - AK en ZMV'!$D$9","v":0},null,null,null,"*='Zorg via CAK - AK en ZMV'!$D$9"]
[70128444,{"$f":"'Zorg via CAK - AK en ZMV'!$E$9","v":0},null,null,null,"*='Zorg via CAK - AK en ZMV'!$E$9"]
[70128445,{"$f":"'Zorg via CAK - AK en ZMV'!$D$10","v":0},null,null,null,"*='Zorg via CAK - AK en ZMV'!$D$10"]
[70128446,{"$f":"'Zorg via CAK - AK en ZMV'!$E$10","v":0},null,null,null,"*='Zorg via CAK - AK en ZMV'!$E$10"]
[70128447,{"$f":"'Zorg via CAK - AK en ZMV'!$D$11","v":0},null,null,null,"*='Zorg via CAK - AK en ZMV'!$D$11"]
[70128448,{"$f":"'Zorg via CAK - AK en ZMV'!$E$11","v":0},null,null,null,"*='Zorg via CAK - AK en ZMV'!$E$11"]
[70128449,{"$f":"'Zorg via CAK - AK en ZMV'!$D$12","v":0},null,null,null,"*='Zorg via CAK - AK en ZMV'!$D$12"]
[70128450,{"$f":"'Zorg via CAK - AK en ZMV'!$E$12","v":0},null,null,null,"*='Zorg via CAK - AK en ZMV'!$E$12"]
[70128451,{"$f":"'Zorg via CAK - AK en ZMV'!$D$13","v":0},null,null,null,"*='Zorg via CAK - AK en ZMV'!$D$13"]
[70128452,{"$f":"'Zorg via CAK - AK en ZMV'!$E$13","v":0},null,null,null,"*='Zorg via CAK - AK en ZMV'!$E$13"]
[70128439,{"$f":"'Zorg via CAK - AK en ZMV'!$D$14","v":0},null,null,null,"*='Zorg via CAK - AK en ZMV'!$D$14"]
[70128440,{"$f":"'Zorg via CAK - AK en ZMV'!$E$14","v":0},null,null,null,"*='Zorg via CAK - AK en ZMV'!$E$14"]
[70128453,{"$f":"'Zorg via CAK - AK en ZMV'!$D$15","v":0},null,null,null,"*='Zorg via CAK - AK en ZMV'!$D$15"]
[70128454,{"$f":"'Zorg via CAK - AK en ZMV'!$E$15","v":0},null,null,null,"*='Zorg via CAK - AK en ZMV'!$E$15"]
[70128455,{"$f":"'Zorg via CAK - AK en ZMV'!$D$16","v":0},null,null,null,"*='Zorg via CAK - AK en ZMV'!$D$16"]
[70128456,{"$f":"'Zorg via CAK - AK en ZMV'!$E$16","v":0},null,null,null,"*='Zorg via CAK - AK en ZMV'!$E$16"]
[70128457,{"$f":"'Zorg via CAK - AK en ZMV'!$D$17","v":0},null,null,null,"*='Zorg via CAK - AK en ZMV'!$D$17"]
[70128458,{"$f":"'Zorg via CAK - AK en ZMV'!$E$17","v":0},null,null,null,"*='Zorg via CAK - AK en ZMV'!$E$17"]
[70128459,{"$f":"'Zorg via CAK - AK en ZMV'!$D$128","v":0},null,null,null,"*='Zorg via CAK - AK en ZMV'!$D$128"]
[70128460,{"$f":"'Zorg via CAK - AK en ZMV'!$E$128","v":0},null,null,null,"*='Zorg via CAK - AK en ZMV'!$E$128"]
[70128461,{"$f":"'Zorg via CAK - AK en ZMV'!$D$129","v":0},null,null,null,"*='Zorg via CAK - AK en ZMV'!$D$129"]
[70128462,{"$f":"'Zorg via CAK - AK en ZMV'!$E$129","v":0},null,null,null,"*='Zorg via CAK - AK en ZMV'!$E$129"]
[70128463,{"$f":"'Zorg via CAK - AK en ZMV'!$D$130","v":0},null,null,null,"*='Zorg via CAK - AK en ZMV'!$D$130"]
[70128464,{"$f":"'Zorg via CAK - AK en ZMV'!$E$130","v":0},null,null,null,"*='Zorg via CAK - AK en ZMV'!$E$130"]
[70128465,{"$f":"'Zorg via CAK - AK en ZMV'!$D$131","v":0},null,null,null,"*='Zorg via CAK - AK en ZMV'!$D$131"]
[70128466,{"$f":"'Zorg via CAK - AK en ZMV'!$E$131","v":0},null,null,null,"*='Zorg via CAK - AK en ZMV'!$E$131"]
[70128467,{"$f":"'Zorg via CAK - AK en ZMV'!$D$132","v":0},null,null,null,"*='Zorg via CAK - AK en ZMV'!$D$132"]
[70128468,{"$f":"'Zorg via CAK - AK en ZMV'!$E$132","v":0},null,null,null,"*='Zorg via CAK - AK en ZMV'!$E$132"]
[70128469,{"$f":"'Zorg via CAK - AK en ZMV'!$D$133","v":0},null,null,null,"*='Zorg via CAK - AK en ZMV'!$D$133"]
[70128470,{"$f":"'Zorg via CAK - AK en ZMV'!$E$133","v":0},null,null,null,"*='Zorg via CAK - AK en ZMV'!$E$133"]
[70128471,{"$f":"'Zorg via CAK - AK en ZMV'!$D$134","v":0},null,null,null,"*='Zorg via CAK - AK en ZMV'!$D$134"]
[70128472,{"$f":"'Zorg via CAK - AK en ZMV'!$E$134","v":0},null,null,null,"*='Zorg via CAK - AK en ZMV'!$E$134"]
[70128646,{"$f":"'Volledig pakket thuis'!$C$8","v":0},null,null,null,"*='Volledig pakket thuis'!$C$8"]
[70128647,{"$f":"'Volledig pakket thuis'!$D$8","v":0},null,null,null,"*='Volledig pakket thuis'!$D$8"]
[70128648,{"$f":"'Volledig pakket thuis'!$C$9","v":0},null,null,null,"*='Volledig pakket thuis'!$C$9"]
[70128649,{"$f":"'Volledig pakket thuis'!$D$9","v":0},null,null,null,"*='Volledig pakket thuis'!$D$9"]
[70128650,{"$f":"'Volledig pakket thuis'!$C$10","v":0},null,null,null,"*='Volledig pakket thuis'!$C$10"]
[70128651,{"$f":"'Volledig pakket thuis'!$D$10","v":0},null,null,null,"*='Volledig pakket thuis'!$D$10"]
[70128652,{"$f":"'Volledig pakket thuis'!$C$11","v":0},null,null,null,"*='Volledig pakket thuis'!$C$11"]
[70128653,{"$f":"'Volledig pakket thuis'!$D$11","v":0},null,null,null,"*='Volledig pakket thuis'!$D$11"]
[70128654,{"$f":"'Volledig pakket thuis'!$C$12","v":0},null,null,null,"*='Volledig pakket thuis'!$C$12"]
[70128655,{"$f":"'Volledig pakket thuis'!$D$12","v":0},null,null,null,"*='Volledig pakket thuis'!$D$12"]
[70128656,{"$f":"'Volledig pakket thuis'!$C$13","v":0},null,null,null,"*='Volledig pakket thuis'!$C$13"]
[70128657,{"$f":"'Volledig pakket thuis'!$D$13","v":0},null,null,null,"*='Volledig pakket thuis'!$D$13"]
[70128658,{"$f":"'Volledig pakket thuis'!$C$14","v":0},null,null,null,"*='Volledig pakket thuis'!$C$14"]
[70128659,{"$f":"'Volledig pakket thuis'!$D$14","v":0},null,null,null,"*='Volledig pakket thuis'!$D$14"]
[70128660,{"$f":"'Volledig pakket thuis'!$C$15","v":0},null,null,null,"*='Volledig pakket thuis'!$C$15"]
[70128661,{"$f":"'Volledig pakket thuis'!$D$15","v":0},null,null,null,"*='Volledig pakket thuis'!$D$15"]
[70128662,{"$f":"'Volledig pakket thuis'!$C$16","v":0},null,null,null,"*='Volledig pakket thuis'!$C$16"]
[70128663,{"$f":"'Volledig pakket thuis'!$D$16","v":0},null,null,null,"*='Volledig pakket thuis'!$D$16"]
[70128664,{"$f":"'Volledig pakket thuis'!$C$17","v":0},null,null,null,"*='Volledig pakket thuis'!$C$17"]
[70128665,{"$f":"'Volledig pakket thuis'!$D$17","v":0},null,null,null,"*='Volledig pakket thuis'!$D$17"]
[70128491,{"$f":"'Zorg via CAK - ZZV'!$D$9","v":0},null,null,null,"*='Zorg via CAK - ZZV'!$D$9"]
[70128492,{"$f":"'Zorg via CAK - ZZV'!$E$9","v":0},null,null,null,"*='Zorg via CAK - ZZV'!$E$9"]
[70128487,{"$f":"'Zorg via CAK - ZZV'!$D$10","v":0},null,null,null,"*='Zorg via CAK - ZZV'!$D$10"]
[70128488,{"$f":"'Zorg via CAK - ZZV'!$E$10","v":0},null,null,null,"*='Zorg via CAK - ZZV'!$E$10"]
[70128489,{"$f":"'Zorg via CAK - ZZV'!$D$11","v":0},null,null,null,"*='Zorg via CAK - ZZV'!$D$11"]
[70128490,{"$f":"'Zorg via CAK - ZZV'!$E$11","v":0},null,null,null,"*='Zorg via CAK - ZZV'!$E$11"]
[70128493,{"$f":"'Zorg via CAK - ZZV'!$D$12","v":0},null,null,null,"*='Zorg via CAK - ZZV'!$D$12"]
[70128494,{"$f":"'Zorg via CAK - ZZV'!$E$12","v":0},null,null,null,"*='Zorg via CAK - ZZV'!$E$12"]
[70128495,{"$f":"'Zorg via CAK - ZZV'!$D$13","v":0},null,null,null,"*='Zorg via CAK - ZZV'!$D$13"]
[70128496,{"$f":"'Zorg via CAK - ZZV'!$E$13","v":0},null,null,null,"*='Zorg via CAK - ZZV'!$E$13"]
[70128497,{"$f":"'Zorg via CAK - ZZV'!$D$14","v":0},null,null,null,"*='Zorg via CAK - ZZV'!$D$14"]
[70128498,{"$f":"'Zorg via CAK - ZZV'!$E$14","v":0},null,null,null,"*='Zorg via CAK - ZZV'!$E$14"]
[70128499,{"$f":"'Zorg via CAK - ZZV'!$D$15","v":0},null,null,null,"*='Zorg via CAK - ZZV'!$D$15"]
[70128500,{"$f":"'Zorg via CAK - ZZV'!$E$15","v":0},null,null,null,"*='Zorg via CAK - ZZV'!$E$15"]
[70128501,{"$f":"'Zorg via CAK - ZZV'!$D$16","v":0},null,null,null,"*='Zorg via CAK - ZZV'!$D$16"]
[70128502,{"$f":"'Zorg via CAK - ZZV'!$E$16","v":0},null,null,null,"*='Zorg via CAK - ZZV'!$E$16"]
[70128503,{"$f":"'Zorg via CAK - ZZV'!$D$17","v":0},null,null,null,"*='Zorg via CAK - ZZV'!$D$17"]
[70128504,{"$f":"'Zorg via CAK - ZZV'!$E$17","v":0},null,null,null,"*='Zorg via CAK - ZZV'!$E$17"]
[70128505,{"$f":"'Zorg via CAK - ZZV'!$D$29","v":0},null,null,null,"*='Zorg via CAK - ZZV'!$D$29"]
[70128506,{"$f":"'Zorg via CAK - ZZV'!$E$29","v":0},null,null,null,"*='Zorg via CAK - ZZV'!$E$29"]
[70128507,{"$f":"'Zorg via CAK - ZZV'!$D$30","v":0},null,null,null,"*='Zorg via CAK - ZZV'!$D$30"]
[70128508,{"$f":"'Zorg via CAK - ZZV'!$E$30","v":0},null,null,null,"*='Zorg via CAK - ZZV'!$E$30"]
[70128513,{"$f":"'Zorg via CAK - ZZV'!$D$31","v":0},null,null,null,"*='Zorg via CAK - ZZV'!$D$31"]
[70128514,{"$f":"'Zorg via CAK - ZZV'!$E$31","v":0},null,null,null,"*='Zorg via CAK - ZZV'!$E$31"]
[70128515,{"$f":"'Zorg via CAK - ZZV'!$D$32","v":0},null,null,null,"*='Zorg via CAK - ZZV'!$D$32"]
[70128516,{"$f":"'Zorg via CAK - ZZV'!$E$32","v":0},null,null,null,"*='Zorg via CAK - ZZV'!$E$32"]
[70128509,{"$f":"'Zorg via CAK - ZZV'!$D$33","v":0},null,null,null,"*='Zorg via CAK - ZZV'!$D$33"]
[70128510,{"$f":"'Zorg via CAK - ZZV'!$E$33","v":0},null,null,null,"*='Zorg via CAK - ZZV'!$E$33"]
[70128517,{"$f":"'Zorg via CAK - ZZV'!$D$34","v":0},null,null,null,"*='Zorg via CAK - ZZV'!$D$34"]
[70128518,{"$f":"'Zorg via CAK - ZZV'!$E$34","v":0},null,null,null,"*='Zorg via CAK - ZZV'!$E$34"]
[70128519,{"$f":"'Zorg via CAK - ZZV'!$D$35","v":0},null,null,null,"*='Zorg via CAK - ZZV'!$D$35"]
[70128520,{"$f":"'Zorg via CAK - ZZV'!$E$35","v":0},null,null,null,"*='Zorg via CAK - ZZV'!$E$35"]
[70128521,{"$f":"'Zorg via CAK - ZZV'!$D$36","v":0},null,null,null,"*='Zorg via CAK - ZZV'!$D$36"]
[70128522,{"$f":"'Zorg via CAK - ZZV'!$E$36","v":0},null,null,null,"*='Zorg via CAK - ZZV'!$E$36"]
[70128511,{"$f":"'Zorg via CAK - ZZV'!$D$37","v":0},null,null,null,"*='Zorg via CAK - ZZV'!$D$37"]
[70128512,{"$f":"'Zorg via CAK - ZZV'!$E$37","v":0},null,null,null,"*='Zorg via CAK - ZZV'!$E$37"]
[70128523,{"$f":"'Zorg via CAK - ZZV'!$D$38","v":0},null,null,null,"*='Zorg via CAK - ZZV'!$D$38"]
[70128524,{"$f":"'Zorg via CAK - ZZV'!$E$38","v":0},null,null,null,"*='Zorg via CAK - ZZV'!$E$38"]
[70128525,{"$f":"'Zorg via CAK - ZZV'!$D$39","v":0},null,null,null,"*='Zorg via CAK - ZZV'!$D$39"]
[70128526,{"$f":"'Zorg via CAK - ZZV'!$E$39","v":0},null,null,null,"*='Zorg via CAK - ZZV'!$E$39"]
[70128527,{"$f":"'Zorg via CAK - ZZV'!$D$40","v":0},null,null,null,"*='Zorg via CAK - ZZV'!$D$40"]
[70128528,{"$f":"'Zorg via CAK - ZZV'!$E$40","v":0},null,null,null,"*='Zorg via CAK - ZZV'!$E$40"]
[70128529,{"$f":"'Zorg via CAK - ZZV'!$D$41","v":0},null,null,null,"*='Zorg via CAK - ZZV'!$D$41"]
[70128530,{"$f":"'Zorg via CAK - ZZV'!$E$41","v":0},null,null,null,"*='Zorg via CAK - ZZV'!$E$41"]
[70128830,{"$f":"Beheerskosten!$E$7","v":0},null,null,null,"*=Beheerskosten!$E$7"]
[70128828,{"$f":"Beheerskosten!$E$8","v":0},null,null,null,"*=Beheerskosten!$E$8"]
[70128829,{"$f":"Beheerskosten!$E$9","v":0},null,null,null,"*=Beheerskosten!$E$9"]
[70128826,{"$f":"'Zorg via CAK - ZZV'!$D$8","v":0},null,null,null,"*='Zorg via CAK - ZZV'!$D$8"]
[70128827,{"$f":"'Zorg via CAK - ZZV'!$E$8","v":0},null,null,null,"*='Zorg via CAK - ZZV'!$E$8"]
[70128919,{"$f":"'Zorg via CAK - AK en ZMV'!$D$23","v":0},null,null,null,"*='Zorg via CAK - AK en ZMV'!$D$23"]
[70128920,{"$f":"'Zorg via CAK - AK en ZMV'!$E$23","v":0},null,null,null,"*='Zorg via CAK - AK en ZMV'!$E$23"]
[70128921,{"$f":"'Zorg via CAK - AK en ZMV'!$D$24","v":0},null,null,null,"*='Zorg via CAK - AK en ZMV'!$D$24"]
[70128922,{"$f":"'Zorg via CAK - AK en ZMV'!$E$24","v":0},null,null,null,"*='Zorg via CAK - AK en ZMV'!$E$24"]
[70128923,{"$f":"'Zorg via CAK - AK en ZMV'!$D$25","v":0},null,null,null,"*='Zorg via CAK - AK en ZMV'!$D$25"]
[70128924,{"$f":"'Zorg via CAK - AK en ZMV'!$E$25","v":0},null,null,null,"*='Zorg via CAK - AK en ZMV'!$E$25"]
[70128925,{"$f":"'Zorg via CAK - AK en ZMV'!$D$26","v":0},null,null,null,"*='Zorg via CAK - AK en ZMV'!$D$26"]
[70128926,{"$f":"'Zorg via CAK - AK en ZMV'!$E$26","v":0},null,null,null,"*='Zorg via CAK - AK en ZMV'!$E$26"]
[70128927,{"$f":"'Zorg via CAK - AK en ZMV'!$D$28","v":0},null,null,null,"*='Zorg via CAK - AK en ZMV'!$D$28"]
[70128928,{"$f":"'Zorg via CAK - AK en ZMV'!$E$28","v":0},null,null,null,"*='Zorg via CAK - AK en ZMV'!$E$28"]
[70128929,{"$f":"'Zorg via CAK - AK en ZMV'!$D$29","v":0},null,null,null,"*='Zorg via CAK - AK en ZMV'!$D$29"]
[70128930,{"$f":"'Zorg via CAK - AK en ZMV'!$E$29","v":0},null,null,null,"*='Zorg via CAK - AK en ZMV'!$E$29"]
[70128931,{"$f":"'Zorg via CAK - AK en ZMV'!$D$30","v":0},null,null,null,"*='Zorg via CAK - AK en ZMV'!$D$30"]
[70128932,{"$f":"'Zorg via CAK - AK en ZMV'!$E$30","v":0},null,null,null,"*='Zorg via CAK - AK en ZMV'!$E$30"]
[70128933,{"$f":"'Zorg via CAK - AK en ZMV'!$D$27","v":0},null,null,null,"*='Zorg via CAK - AK en ZMV'!$D$27"]
[70128934,{"$f":"'Zorg via CAK - AK en ZMV'!$E$27","v":0},null,null,null,"*='Zorg via CAK - AK en ZMV'!$E$27"]
[70128411,{"$f":"'Zorg via CAK - AK en ZMV'!$D$35","v":0},null,null,null,"*='Zorg via CAK - AK en ZMV'!$D$35"]
[70128412,{"$f":"'Zorg via CAK - AK en ZMV'!$E$35","v":0},null,null,null,"*='Zorg via CAK - AK en ZMV'!$E$35"]
[70128413,{"$f":"'Zorg via CAK - AK en ZMV'!$D$36","v":0},null,null,null,"*='Zorg via CAK - AK en ZMV'!$D$36"]
[70128414,{"$f":"'Zorg via CAK - AK en ZMV'!$E$36","v":0},null,null,null,"*='Zorg via CAK - AK en ZMV'!$E$36"]
[70128415,{"$f":"'Zorg via CAK - AK en ZMV'!$D$37","v":0},null,null,null,"*='Zorg via CAK - AK en ZMV'!$D$37"]
[70128416,{"$f":"'Zorg via CAK - AK en ZMV'!$E$37","v":0},null,null,null,"*='Zorg via CAK - AK en ZMV'!$E$37"]
[70128417,{"$f":"'Zorg via CAK - AK en ZMV'!$D$38","v":0},null,null,null,"*='Zorg via CAK - AK en ZMV'!$D$38"]
[70128418,{"$f":"'Zorg via CAK - AK en ZMV'!$E$38","v":0},null,null,null,"*='Zorg via CAK - AK en ZMV'!$E$38"]
[70128419,{"$f":"'Zorg via CAK - AK en ZMV'!$D$40","v":0},null,null,null,"*='Zorg via CAK - AK en ZMV'!$D$40"]
[70128420,{"$f":"'Zorg via CAK - AK en ZMV'!$E$40","v":0},null,null,null,"*='Zorg via CAK - AK en ZMV'!$E$40"]
[70128421,{"$f":"'Zorg via CAK - AK en ZMV'!$D$41","v":0},null,null,null,"*='Zorg via CAK - AK en ZMV'!$D$41"]
[70128422,{"$f":"'Zorg via CAK - AK en ZMV'!$E$41","v":0},null,null,null,"*='Zorg via CAK - AK en ZMV'!$E$41"]
[70128423,{"$f":"'Zorg via CAK - AK en ZMV'!$D$42","v":0},null,null,null,"*='Zorg via CAK - AK en ZMV'!$D$42"]
[70128424,{"$f":"'Zorg via CAK - AK en ZMV'!$E$42","v":0},null,null,null,"*='Zorg via CAK - AK en ZMV'!$E$42"]
[70128425,{"$f":"'Zorg via CAK - AK en ZMV'!$D$39","v":0},null,null,null,"*='Zorg via CAK - AK en ZMV'!$D$39"]
[70128426,{"$f":"'Zorg via CAK - AK en ZMV'!$E$39","v":0},null,null,null,"*='Zorg via CAK - AK en ZMV'!$E$39"]
[70128477,{"$f":"'Zorg via CAK - AK en ZMV'!$D$139","v":0},null,null,null,"*='Zorg via CAK - AK en ZMV'!$D$139"]
[70128478,{"$f":"'Zorg via CAK - AK en ZMV'!$E$139","v":0},null,null,null,"*='Zorg via CAK - AK en ZMV'!$E$139"]
[70128479,{"$f":"'Zorg via CAK - AK en ZMV'!$D$140","v":0},null,null,null,"*='Zorg via CAK - AK en ZMV'!$D$140"]
[70128480,{"$f":"'Zorg via CAK - AK en ZMV'!$E$140","v":0},null,null,null,"*='Zorg via CAK - AK en ZMV'!$E$140"]
[70128481,{"$f":"'Zorg via CAK - AK en ZMV'!$D$141","v":0},null,null,null,"*='Zorg via CAK - AK en ZMV'!$D$141"]
[70128482,{"$f":"'Zorg via CAK - AK en ZMV'!$E$141","v":0},null,null,null,"*='Zorg via CAK - AK en ZMV'!$E$141"]
[70128483,{"$f":"'Zorg via CAK - AK en ZMV'!$D$142","v":0},null,null,null,"*='Zorg via CAK - AK en ZMV'!$D$142"]
[70128484,{"$f":"'Zorg via CAK - AK en ZMV'!$E$142","v":0},null,null,null,"*='Zorg via CAK - AK en ZMV'!$E$142"]
[70128485,{"$f":"'Zorg via CAK - AK en ZMV'!$D$143","v":0},null,null,null,"*='Zorg via CAK - AK en ZMV'!$D$143"]
[70128486,{"$f":"'Zorg via CAK - AK en ZMV'!$E$143","v":0},null,null,null,"*='Zorg via CAK - AK en ZMV'!$E$143"]
[70128473,{"$f":"'Zorg via CAK - AK en ZMV'!$D$144","v":0},null,null,null,"*='Zorg via CAK - AK en ZMV'!$D$144"]
[70128474,{"$f":"'Zorg via CAK - AK en ZMV'!$E$144","v":0},null,null,null,"*='Zorg via CAK - AK en ZMV'!$E$144"]
[70128475,{"$f":"'Zorg via CAK - AK en ZMV'!$D$145","v":0},null,null,null,"*='Zorg via CAK - AK en ZMV'!$D$145"]
[70128476,{"$f":"'Zorg via CAK - AK en ZMV'!$E$145","v":0},null,null,null,"*='Zorg via CAK - AK en ZMV'!$E$145"]
[70128427,{"$f":"'Zorg via CAK - AK en ZMV'!$D$47","v":0},null,null,null,"*='Zorg via CAK - AK en ZMV'!$D$47"]
[70128428,{"$f":"'Zorg via CAK - AK en ZMV'!$E$47","v":0},null,null,null,"*='Zorg via CAK - AK en ZMV'!$E$47"]
[70128429,{"$f":"'Zorg via CAK - AK en ZMV'!$D$48","v":0},null,null,null,"*='Zorg via CAK - AK en ZMV'!$D$48"]
[70128430,{"$f":"'Zorg via CAK - AK en ZMV'!$E$48","v":0},null,null,null,"*='Zorg via CAK - AK en ZMV'!$E$48"]
[70128431,{"$f":"'Zorg via CAK - AK en ZMV'!$D$49","v":0},null,null,null,"*='Zorg via CAK - AK en ZMV'!$D$49"]
[70128432,{"$f":"'Zorg via CAK - AK en ZMV'!$E$49","v":0},null,null,null,"*='Zorg via CAK - AK en ZMV'!$E$49"]
[70128433,{"$f":"'Zorg via CAK - AK en ZMV'!$D$50","v":0},null,null,null,"*='Zorg via CAK - AK en ZMV'!$D$50"]
[70128434,{"$f":"'Zorg via CAK - AK en ZMV'!$E$50","v":0},null,null,null,"*='Zorg via CAK - AK en ZMV'!$E$50"]
[70128435,{"$f":"'Zorg via CAK - AK en ZMV'!$D$51","v":0},null,null,null,"*='Zorg via CAK - AK en ZMV'!$D$51"]
[70128436,{"$f":"'Zorg via CAK - AK en ZMV'!$E$51","v":0},null,null,null,"*='Zorg via CAK - AK en ZMV'!$E$51"]
[70128437,{"$f":"'Zorg via CAK - AK en ZMV'!$D$61","v":0},null,null,null,"*='Zorg via CAK - AK en ZMV'!$D$61"]
[70128438,{"$f":"'Zorg via CAK - AK en ZMV'!$E$61","v":0},null,null,null,"*='Zorg via CAK - AK en ZMV'!$E$61"]
[70128810,{"$f":"'Zorg via CAK - ZZV'!$D$18","v":0},null,null,null,"*='Zorg via CAK - ZZV'!$D$18"]
[70128811,{"$f":"'Zorg via CAK - ZZV'!$E$18","v":0},null,null,null,"*='Zorg via CAK - ZZV'!$E$18"]
[70128804,{"$f":"'Zorg via CAK - ZZV'!$D$19","v":0},null,null,null,"*='Zorg via CAK - ZZV'!$D$19"]
[70128805,{"$f":"'Zorg via CAK - ZZV'!$E$19","v":0},null,null,null,"*='Zorg via CAK - ZZV'!$E$19"]
[70128806,{"$f":"'Zorg via CAK - ZZV'!$D$20","v":0},null,null,null,"*='Zorg via CAK - ZZV'!$D$20"]
[70128807,{"$f":"'Zorg via CAK - ZZV'!$E$20","v":0},null,null,null,"*='Zorg via CAK - ZZV'!$E$20"]
[70128808,{"$f":"'Zorg via CAK - ZZV'!$D$21","v":0},null,null,null,"*='Zorg via CAK - ZZV'!$D$21"]
[70128809,{"$f":"'Zorg via CAK - ZZV'!$E$21","v":0},null,null,null,"*='Zorg via CAK - ZZV'!$E$21"]
[70128812,{"$f":"'Zorg via CAK - ZZV'!$D$22","v":0},null,null,null,"*='Zorg via CAK - ZZV'!$D$22"]
[70128813,{"$f":"'Zorg via CAK - ZZV'!$E$22","v":0},null,null,null,"*='Zorg via CAK - ZZV'!$E$22"]
[70128814,{"$f":"'Zorg via CAK - ZZV'!$D$23","v":0},null,null,null,"*='Zorg via CAK - ZZV'!$D$23"]
[70128815,{"$f":"'Zorg via CAK - ZZV'!$E$23","v":0},null,null,null,"*='Zorg via CAK - ZZV'!$E$23"]
[70128816,{"$f":"'Zorg via CAK - ZZV'!$D$24","v":0},null,null,null,"*='Zorg via CAK - ZZV'!$D$24"]
[70128817,{"$f":"'Zorg via CAK - ZZV'!$E$24","v":0},null,null,null,"*='Zorg via CAK - ZZV'!$E$24"]
[70128818,{"$f":"'Zorg via CAK - ZZV'!$D$25","v":0},null,null,null,"*='Zorg via CAK - ZZV'!$D$25"]
[70128819,{"$f":"'Zorg via CAK - ZZV'!$E$25","v":0},null,null,null,"*='Zorg via CAK - ZZV'!$E$25"]
[70128820,{"$f":"'Zorg via CAK - ZZV'!$D$26","v":0},null,null,null,"*='Zorg via CAK - ZZV'!$D$26"]
[70128821,{"$f":"'Zorg via CAK - ZZV'!$E$26","v":0},null,null,null,"*='Zorg via CAK - ZZV'!$E$26"]
[70128822,{"$f":"'Zorg via CAK - ZZV'!$D$27","v":0},null,null,null,"*='Zorg via CAK - ZZV'!$D$27"]
[70128823,{"$f":"'Zorg via CAK - ZZV'!$E$27","v":0},null,null,null,"*='Zorg via CAK - ZZV'!$E$27"]
[70128824,{"$f":"'Zorg via CAK - ZZV'!$D$28","v":0},null,null,null,"*='Zorg via CAK - ZZV'!$D$28"]
[70128825,{"$f":"'Zorg via CAK - ZZV'!$E$28","v":0},null,null,null,"*='Zorg via CAK - ZZV'!$E$28"]
[70128895,{"$f":"'Dagbesteding en vervoer'!$B$19","v":0},null,null,null,"*='Dagbesteding en vervoer'!$B$19"]
[70128896,{"$f":"'Dagbesteding en vervoer'!$C$19","v":0},null,null,null,"*='Dagbesteding en vervoer'!$C$19"]
[70128897,{"$f":"'Dagbesteding en vervoer'!$B$20","v":0},null,null,null,"*='Dagbesteding en vervoer'!$B$20"]
[70128898,{"$f":"'Dagbesteding en vervoer'!$C$20","v":0},null,null,null,"*='Dagbesteding en vervoer'!$C$20"]
[70128899,{"$f":"'Dagbesteding en vervoer'!$B$21","v":0},null,null,null,"*='Dagbesteding en vervoer'!$B$21"]
[70128900,{"$f":"'Dagbesteding en vervoer'!$C$21","v":0},null,null,null,"*='Dagbesteding en vervoer'!$C$21"]
[70128901,{"$f":"'Dagbesteding en vervoer'!$B$22","v":0},null,null,null,"*='Dagbesteding en vervoer'!$B$22"]
[70128902,{"$f":"'Dagbesteding en vervoer'!$C$22","v":0},null,null,null,"*='Dagbesteding en vervoer'!$C$22"]
[70128903,{"$f":"[6]Blad7!$D$16","v":0},null,null,null,"*='G:\\verwerk\\vsd_prod\\formats\\kwartaalstaat\\WLZ\\2019\\Formats\\KOSTA\\[KOSTA Q2 Wlz 2019 origineel - plakkopie.xlsm]Blad7'!$D$16"]
[70128904,{"$f":"[6]Blad7!$E$16","v":0},null,null,null,"*='G:\\verwerk\\vsd_prod\\formats\\kwartaalstaat\\WLZ\\2019\\Formats\\KOSTA\\[KOSTA Q2 Wlz 2019 origineel - plakkopie.xlsm]Blad7'!$E$16"]
[70128905,{"$f":"'Dagbesteding en vervoer'!$B$28","v":0},null,null,null,"*='Dagbesteding en vervoer'!$B$28"]
[70128906,{"$f":"'Dagbesteding en vervoer'!$C$28","v":0},null,null,null,"*='Dagbesteding en vervoer'!$C$28"]
[70128911,{"$f":"'Dagbesteding en vervoer'!$B$8","v":0},null,null,null,"*='Dagbesteding en vervoer'!$B$8"]
[70128912,{"$f":"'Dagbesteding en vervoer'!$C$8","v":0},null,null,null,"*='Dagbesteding en vervoer'!$C$8"]
[70128913,{"$f":"'Dagbesteding en vervoer'!$B$9","v":0},null,null,null,"*='Dagbesteding en vervoer'!$B$9"]
[70128914,{"$f":"'Dagbesteding en vervoer'!$C$9","v":0},null,null,null,"*='Dagbesteding en vervoer'!$C$9"]
[70128915,{"$f":"'Dagbesteding en vervoer'!$B$10","v":0},null,null,null,"*='Dagbesteding en vervoer'!$B$10"]
[70128916,{"$f":"'Dagbesteding en vervoer'!$C$10","v":0},null,null,null,"*='Dagbesteding en vervoer'!$C$10"]
[70128917,{"$f":"'Dagbesteding en vervoer'!$B$11","v":0},null,null,null,"*='Dagbesteding en vervoer'!$B$11"]
[70128918,{"$f":"'Dagbesteding en vervoer'!$C$11","v":0},null,null,null,"*='Dagbesteding en vervoer'!$C$11"]
[70128907,{"$f":"'Dagbesteding en vervoer'!$B$12","v":0},null,null,null,"*='Dagbesteding en vervoer'!$B$12"]
[70128908,{"$f":"'Dagbesteding en vervoer'!$C$12","v":0},null,null,null,"*='Dagbesteding en vervoer'!$C$12"]
[70128909,{"$f":"'Dagbesteding en vervoer'!$B$14","v":0},null,null,null,"*='Dagbesteding en vervoer'!$B$14"]
[70128910,{"$f":"'Dagbesteding en vervoer'!$C$14","v":0},null,null,null,"*='Dagbesteding en vervoer'!$C$14"]
[70128831,{"$f":"'Zorg via CAK - AK en ZMV'!$D$66","v":0},null,null,null,"*='Zorg via CAK - AK en ZMV'!$D$66"]
[70128832,{"$f":"'Zorg via CAK - AK en ZMV'!$E$66","v":0},null,null,null,"*='Zorg via CAK - AK en ZMV'!$E$66"]
[70128833,{"$f":"'Zorg via CAK - AK en ZMV'!$D$67","v":0},null,null,null,"*='Zorg via CAK - AK en ZMV'!$D$67"]
[70128834,{"$f":"'Zorg via CAK - AK en ZMV'!$E$67","v":0},null,null,null,"*='Zorg via CAK - AK en ZMV'!$E$67"]
[70128835,{"$f":"'Zorg via CAK - AK en ZMV'!$D$68","v":0},null,null,null,"*='Zorg via CAK - AK en ZMV'!$D$68"]
[70128836,{"$f":"'Zorg via CAK - AK en ZMV'!$E$68","v":0},null,null,null,"*='Zorg via CAK - AK en ZMV'!$E$68"]
[70128837,{"$f":"'Zorg via CAK - AK en ZMV'!$D$69","v":0},null,null,null,"*='Zorg via CAK - AK en ZMV'!$D$69"]
[70128838,{"$f":"'Zorg via CAK - AK en ZMV'!$E$69","v":0},null,null,null,"*='Zorg via CAK - AK en ZMV'!$E$69"]
[70128839,{"$f":"'Zorg via CAK - AK en ZMV'!$D$70","v":0},null,null,null,"*='Zorg via CAK - AK en ZMV'!$D$70"]
[70128840,{"$f":"'Zorg via CAK - AK en ZMV'!$E$70","v":0},null,null,null,"*='Zorg via CAK - AK en ZMV'!$E$70"]
[70128841,{"$f":"'Zorg via CAK - AK en ZMV'!$D$71","v":0},null,null,null,"*='Zorg via CAK - AK en ZMV'!$D$71"]
[70128842,{"$f":"'Zorg via CAK - AK en ZMV'!$E$71","v":0},null,null,null,"*='Zorg via CAK - AK en ZMV'!$E$71"]
[70128843,{"$f":"'Zorg via CAK - AK en ZMV'!$D$72","v":0},null,null,null,"*='Zorg via CAK - AK en ZMV'!$D$72"]
[70128844,{"$f":"'Zorg via CAK - AK en ZMV'!$E$72","v":0},null,null,null,"*='Zorg via CAK - AK en ZMV'!$E$72"]
[70128845,{"$f":"'Zorg via CAK - AK en ZMV'!$D$77","v":0},null,null,null,"*='Zorg via CAK - AK en ZMV'!$D$77"]
[70128846,{"$f":"'Zorg via CAK - AK en ZMV'!$E$77","v":0},null,null,null,"*='Zorg via CAK - AK en ZMV'!$E$77"]
[70128847,{"$f":"'Zorg via CAK - AK en ZMV'!$D$78","v":0},null,null,null,"*='Zorg via CAK - AK en ZMV'!$D$78"]
[70128848,{"$f":"'Zorg via CAK - AK en ZMV'!$E$78","v":0},null,null,null,"*='Zorg via CAK - AK en ZMV'!$E$78"]
[70128849,{"$f":"'Zorg via CAK - AK en ZMV'!$D$79","v":0},null,null,null,"*='Zorg via CAK - AK en ZMV'!$D$79"]
[70128850,{"$f":"'Zorg via CAK - AK en ZMV'!$E$79","v":0},null,null,null,"*='Zorg via CAK - AK en ZMV'!$E$79"]
[70128851,{"$f":"'Zorg via CAK - AK en ZMV'!$D$80","v":0},null,null,null,"*='Zorg via CAK - AK en ZMV'!$D$80"]
[70128852,{"$f":"'Zorg via CAK - AK en ZMV'!$E$80","v":0},null,null,null,"*='Zorg via CAK - AK en ZMV'!$E$80"]
[70128853,{"$f":"'Zorg via CAK - AK en ZMV'!$D$81","v":0},null,null,null,"*='Zorg via CAK - AK en ZMV'!$D$81"]
[70128854,{"$f":"'Zorg via CAK - AK en ZMV'!$E$81","v":0},null,null,null,"*='Zorg via CAK - AK en ZMV'!$E$81"]
[70128855,{"$f":"'Zorg via CAK - AK en ZMV'!$D$82","v":0},null,null,null,"*='Zorg via CAK - AK en ZMV'!$D$82"]
[70128856,{"$f":"'Zorg via CAK - AK en ZMV'!$E$82","v":0},null,null,null,"*='Zorg via CAK - AK en ZMV'!$E$82"]
[70128857,{"$f":"'Zorg via CAK - AK en ZMV'!$D$83","v":0},null,null,null,"*='Zorg via CAK - AK en ZMV'!$D$83"]
[70128858,{"$f":"'Zorg via CAK - AK en ZMV'!$E$83","v":0},null,null,null,"*='Zorg via CAK - AK en ZMV'!$E$83"]
[70128859,{"$f":"'Zorg via CAK - AK en ZMV'!$D$88","v":0},null,null,null,"*='Zorg via CAK - AK en ZMV'!$D$88"]
[70128860,{"$f":"'Zorg via CAK - AK en ZMV'!$E$88","v":0},null,null,null,"*='Zorg via CAK - AK en ZMV'!$E$88"]
[70128861,{"$f":"'Zorg via CAK - AK en ZMV'!$D$89","v":0},null,null,null,"*='Zorg via CAK - AK en ZMV'!$D$89"]
[70128862,{"$f":"'Zorg via CAK - AK en ZMV'!$E$89","v":0},null,null,null,"*='Zorg via CAK - AK en ZMV'!$E$89"]
[70128863,{"$f":"'Zorg via CAK - AK en ZMV'!$D$90","v":0},null,null,null,"*='Zorg via CAK - AK en ZMV'!$D$90"]
[70128864,{"$f":"'Zorg via CAK - AK en ZMV'!$E$90","v":0},null,null,null,"*='Zorg via CAK - AK en ZMV'!$E$90"]
[70128865,{"$f":"'Zorg via CAK - AK en ZMV'!$D$91","v":0},null,null,null,"*='Zorg via CAK - AK en ZMV'!$D$91"]
[70128866,{"$f":"'Zorg via CAK - AK en ZMV'!$E$91","v":0},null,null,null,"*='Zorg via CAK - AK en ZMV'!$E$91"]
[70128867,{"$f":"'Zorg via CAK - AK en ZMV'!$D$96","v":0},null,null,null,"*='Zorg via CAK - AK en ZMV'!$D$96"]
[70128868,{"$f":"'Zorg via CAK - AK en ZMV'!$E$96","v":0},null,null,null,"*='Zorg via CAK - AK en ZMV'!$E$96"]
[70128869,{"$f":"'Zorg via CAK - AK en ZMV'!$D$97","v":0},null,null,null,"*='Zorg via CAK - AK en ZMV'!$D$97"]
[70128870,{"$f":"'Zorg via CAK - AK en ZMV'!$E$97","v":0},null,null,null,"*='Zorg via CAK - AK en ZMV'!$E$97"]
[70128871,{"$f":"'Zorg via CAK - AK en ZMV'!$D$98","v":0},null,null,null,"*='Zorg via CAK - AK en ZMV'!$D$98"]
[70128872,{"$f":"'Zorg via CAK - AK en ZMV'!$E$98","v":0},null,null,null,"*='Zorg via CAK - AK en ZMV'!$E$98"]
[70128873,{"$f":"'Zorg via CAK - AK en ZMV'!$D$99","v":0},null,null,null,"*='Zorg via CAK - AK en ZMV'!$D$99"]
[70128874,{"$f":"'Zorg via CAK - AK en ZMV'!$E$99","v":0},null,null,null,"*='Zorg via CAK - AK en ZMV'!$E$99"]
[70128875,{"$f":"'Zorg via CAK - AK en ZMV'!$D$104","v":0},null,null,null,"*='Zorg via CAK - AK en ZMV'!$D$104"]
[70128876,{"$f":"'Zorg via CAK - AK en ZMV'!$E$104","v":0},null,null,null,"*='Zorg via CAK - AK en ZMV'!$E$104"]
[70128877,{"$f":"'Zorg via CAK - AK en ZMV'!$D$105","v":0},null,null,null,"*='Zorg via CAK - AK en ZMV'!$D$105"]
[70128878,{"$f":"'Zorg via CAK - AK en ZMV'!$E$105","v":0},null,null,null,"*='Zorg via CAK - AK en ZMV'!$E$105"]
[70128879,{"$f":"'Zorg via CAK - AK en ZMV'!$D$106","v":0},null,null,null,"*='Zorg via CAK - AK en ZMV'!$D$106"]
[70128880,{"$f":"'Zorg via CAK - AK en ZMV'!$E$106","v":0},null,null,null,"*='Zorg via CAK - AK en ZMV'!$E$106"]
[70128881,{"$f":"'Zorg via CAK - AK en ZMV'!$D$107","v":0},null,null,null,"*='Zorg via CAK - AK en ZMV'!$D$107"]
[70128882,{"$f":"'Zorg via CAK - AK en ZMV'!$E$107","v":0},null,null,null,"*='Zorg via CAK - AK en ZMV'!$E$107"]
[70128883,{"$f":"'Zorg via CAK - AK en ZMV'!$D$108","v":0},null,null,null,"*='Zorg via CAK - AK en ZMV'!$D$108"]
[70128884,{"$f":"'Zorg via CAK - AK en ZMV'!$E$108","v":0},null,null,null,"*='Zorg via CAK - AK en ZMV'!$E$108"]
[70128885,{"$f":"'Zorg via CAK - AK en ZMV'!$D$118","v":0},null,null,null,"*='Zorg via CAK - AK en ZMV'!$D$118"]
[70128886,{"$f":"'Zorg via CAK - AK en ZMV'!$E$118","v":0},null,null,null,"*='Zorg via CAK - AK en ZMV'!$E$118"]
[70128887,{"$f":"'Zorg via CAK - AK en ZMV'!$D$119","v":0},null,null,null,"*='Zorg via CAK - AK en ZMV'!$D$119"]
[70128888,{"$f":"'Zorg via CAK - AK en ZMV'!$E$119","v":0},null,null,null,"*='Zorg via CAK - AK en ZMV'!$E$119"]
[70128889,{"$f":"'Zorg via CAK - AK en ZMV'!$D$120","v":0},null,null,null,"*='Zorg via CAK - AK en ZMV'!$D$120"]
[70128890,{"$f":"'Zorg via CAK - AK en ZMV'!$E$120","v":0},null,null,null,"*='Zorg via CAK - AK en ZMV'!$E$120"]
[70128891,{"$f":"'Zorg via CAK - AK en ZMV'!$D$121","v":0},null,null,null,"*='Zorg via CAK - AK en ZMV'!$D$121"]
[70128892,{"$f":"'Zorg via CAK - AK en ZMV'!$E$121","v":0},null,null,null,"*='Zorg via CAK - AK en ZMV'!$E$121"]
[70128893,{"$f":"'Zorg via CAK - AK en ZMV'!$D$122","v":0},null,null,null,"*='Zorg via CAK - AK en ZMV'!$D$122"]
[70128894,{"$f":"'Zorg via CAK - AK en ZMV'!$E$122","v":0},null,null,null,"*='Zorg via CAK - AK en ZMV'!$E$122"]
[70128531,{"$f":"[6]Blad7!$D$87","v":0},null,null,null,"*='G:\\verwerk\\vsd_prod\\formats\\kwartaalstaat\\WLZ\\2019\\Formats\\KOSTA\\[KOSTA Q2 Wlz 2019 origineel - plakkopie.xlsm]Blad7'!$D$87"]
[70128532,{"$f":"[6]Blad7!$D$91","v":0},null,null,null,"*='G:\\verwerk\\vsd_prod\\formats\\kwartaalstaat\\WLZ\\2019\\Formats\\KOSTA\\[KOSTA Q2 Wlz 2019 origineel - plakkopie.xlsm]Blad7'!$D$91"]
[70128533,{"$f":"[6]Blad7!$D$92","v":0},null,null,null,"*='G:\\verwerk\\vsd_prod\\formats\\kwartaalstaat\\WLZ\\2019\\Formats\\KOSTA\\[KOSTA Q2 Wlz 2019 origineel - plakkopie.xlsm]Blad7'!$D$92"]
[70128534,{"$f":"[6]Blad7!$D$93","v":0},null,null,null,"*='G:\\verwerk\\vsd_prod\\formats\\kwartaalstaat\\WLZ\\2019\\Formats\\KOSTA\\[KOSTA Q2 Wlz 2019 origineel - plakkopie.xlsm]Blad7'!$D$93"]
[70128535,{"$f":"[6]Blad7!$D$94","v":0},null,null,null,"*='G:\\verwerk\\vsd_prod\\formats\\kwartaalstaat\\WLZ\\2019\\Formats\\KOSTA\\[KOSTA Q2 Wlz 2019 origineel - plakkopie.xlsm]Blad7'!$D$94"]
[70128536,{"$f":"[6]Blad7!$D$95","v":0},null,null,null,"*='G:\\verwerk\\vsd_prod\\formats\\kwartaalstaat\\WLZ\\2019\\Formats\\KOSTA\\[KOSTA Q2 Wlz 2019 origineel - plakkopie.xlsm]Blad7'!$D$95"]
[70128537,{"$f":"[6]Blad7!$D$96","v":0},null,null,null,"*='G:\\verwerk\\vsd_prod\\formats\\kwartaalstaat\\WLZ\\2019\\Formats\\KOSTA\\[KOSTA Q2 Wlz 2019 origineel - plakkopie.xlsm]Blad7'!$D$96"]
[70128666,{"$f":"[6]Blad7!$D$100","v":0},null,null,null,"*='G:\\verwerk\\vsd_prod\\formats\\kwartaalstaat\\WLZ\\2019\\Formats\\KOSTA\\[KOSTA Q2 Wlz 2019 origineel - plakkopie.xlsm]Blad7'!$D$100"]
[70128667,{"$f":"[6]Blad7!$D$101","v":0},null,null,null,"*='G:\\verwerk\\vsd_prod\\formats\\kwartaalstaat\\WLZ\\2019\\Formats\\KOSTA\\[KOSTA Q2 Wlz 2019 origineel - plakkopie.xlsm]Blad7'!$D$101"]
[70128668,{"$f":"[6]Blad7!$D$102","v":0},null,null,null,"*='G:\\verwerk\\vsd_prod\\formats\\kwartaalstaat\\WLZ\\2019\\Formats\\KOSTA\\[KOSTA Q2 Wlz 2019 origineel - plakkopie.xlsm]Blad7'!$D$102"]
[70128669,{"$f":"[6]Blad7!$D$103","v":0},null,null,null,"*='G:\\verwerk\\vsd_prod\\formats\\kwartaalstaat\\WLZ\\2019\\Formats\\KOSTA\\[KOSTA Q2 Wlz 2019 origineel - plakkopie.xlsm]Blad7'!$D$103"]
[70128670,{"$f":"[6]Blad7!$D$104","v":0},null,null,null,"*='G:\\verwerk\\vsd_prod\\formats\\kwartaalstaat\\WLZ\\2019\\Formats\\KOSTA\\[KOSTA Q2 Wlz 2019 origineel - plakkopie.xlsm]Blad7'!$D$104"]
[70128671,{"$f":"[6]Blad7!$D$105","v":0},null,null,null,"*='G:\\verwerk\\vsd_prod\\formats\\kwartaalstaat\\WLZ\\2019\\Formats\\KOSTA\\[KOSTA Q2 Wlz 2019 origineel - plakkopie.xlsm]Blad7'!$D$105"]
[70128672,{"$f":"[6]Blad7!$D$109","v":0},null,null,null,"*='G:\\verwerk\\vsd_prod\\formats\\kwartaalstaat\\WLZ\\2019\\Formats\\KOSTA\\[KOSTA Q2 Wlz 2019 origineel - plakkopie.xlsm]Blad7'!$D$109"]
[70128673,{"$f":"[6]Blad7!$D$110","v":0},null,null,null,"*='G:\\verwerk\\vsd_prod\\formats\\kwartaalstaat\\WLZ\\2019\\Formats\\KOSTA\\[KOSTA Q2 Wlz 2019 origineel - plakkopie.xlsm]Blad7'!$D$110"]
[70128674,{"$f":"[6]Blad7!$D$111","v":0},null,null,null,"*='G:\\verwerk\\vsd_prod\\formats\\kwartaalstaat\\WLZ\\2019\\Formats\\KOSTA\\[KOSTA Q2 Wlz 2019 origineel - plakkopie.xlsm]Blad7'!$D$111"]
[70128675,{"$f":"[6]Blad7!$D$112","v":0},null,null,null,"*='G:\\verwerk\\vsd_prod\\formats\\kwartaalstaat\\WLZ\\2019\\Formats\\KOSTA\\[KOSTA Q2 Wlz 2019 origineel - plakkopie.xlsm]Blad7'!$D$112"]
[70128676,{"$f":"[6]Blad7!$D$113","v":0},null,null,null,"*='G:\\verwerk\\vsd_prod\\formats\\kwartaalstaat\\WLZ\\2019\\Formats\\KOSTA\\[KOSTA Q2 Wlz 2019 origineel - plakkopie.xlsm]Blad7'!$D$113"]
[70128677,{"$f":"[6]Blad7!$D$114","v":0},null,null,null,"*='G:\\verwerk\\vsd_prod\\formats\\kwartaalstaat\\WLZ\\2019\\Formats\\KOSTA\\[KOSTA Q2 Wlz 2019 origineel - plakkopie.xlsm]Blad7'!$D$114"]
[70128683,{"$f":"[6]Blad7!$D$118","v":0},null,null,null,"*='G:\\verwerk\\vsd_prod\\formats\\kwartaalstaat\\WLZ\\2019\\Formats\\KOSTA\\[KOSTA Q2 Wlz 2019 origineel - plakkopie.xlsm]Blad7'!$D$118"]
[70128678,{"$f":"[6]Blad7!$D$119","v":0},null,null,null,"*='G:\\verwerk\\vsd_prod\\formats\\kwartaalstaat\\WLZ\\2019\\Formats\\KOSTA\\[KOSTA Q2 Wlz 2019 origineel - plakkopie.xlsm]Blad7'!$D$119"]
[70128679,{"$f":"[6]Blad7!$D$120","v":0},null,null,null,"*='G:\\verwerk\\vsd_prod\\formats\\kwartaalstaat\\WLZ\\2019\\Formats\\KOSTA\\[KOSTA Q2 Wlz 2019 origineel - plakkopie.xlsm]Blad7'!$D$120"]
[70128680,{"$f":"[6]Blad7!$D$121","v":0},null,null,null,"*='G:\\verwerk\\vsd_prod\\formats\\kwartaalstaat\\WLZ\\2019\\Formats\\KOSTA\\[KOSTA Q2 Wlz 2019 origineel - plakkopie.xlsm]Blad7'!$D$121"]
[70128681,{"$f":"[6]Blad7!$D$122","v":0},null,null,null,"*='G:\\verwerk\\vsd_prod\\formats\\kwartaalstaat\\WLZ\\2019\\Formats\\KOSTA\\[KOSTA Q2 Wlz 2019 origineel - plakkopie.xlsm]Blad7'!$D$122"]
[70128682,{"$f":"[6]Blad7!$D$123","v":0},null,null,null,"*='G:\\verwerk\\vsd_prod\\formats\\kwartaalstaat\\WLZ\\2019\\Formats\\KOSTA\\[KOSTA Q2 Wlz 2019 origineel - plakkopie.xlsm]Blad7'!$D$123"]
[70128684,{"$f":"[6]Blad7!$D$127","v":0},null,null,null,"*='G:\\verwerk\\vsd_prod\\formats\\kwartaalstaat\\WLZ\\2019\\Formats\\KOSTA\\[KOSTA Q2 Wlz 2019 origineel - plakkopie.xlsm]Blad7'!$D$127"]
[70128685,{"$f":"[6]Blad7!$D$128","v":0},null,null,null,"*='G:\\verwerk\\vsd_prod\\formats\\kwartaalstaat\\WLZ\\2019\\Formats\\KOSTA\\[KOSTA Q2 Wlz 2019 origineel - plakkopie.xlsm]Blad7'!$D$128"]
[70128686,{"$f":"[6]Blad7!$D$132","v":0},null,null,null,"*='G:\\verwerk\\vsd_prod\\formats\\kwartaalstaat\\WLZ\\2019\\Formats\\KOSTA\\[KOSTA Q2 Wlz 2019 origineel - plakkopie.xlsm]Blad7'!$D$132"]
[70128687,{"$f":"[6]Blad7!$E$132","v":0},null,null,null,"*='G:\\verwerk\\vsd_prod\\formats\\kwartaalstaat\\WLZ\\2019\\Formats\\KOSTA\\[KOSTA Q2 Wlz 2019 origineel - plakkopie.xlsm]Blad7'!$E$132"]
[70128688,{"$f":"[6]Blad7!$D$133","v":0},null,null,null,"*='G:\\verwerk\\vsd_prod\\formats\\kwartaalstaat\\WLZ\\2019\\Formats\\KOSTA\\[KOSTA Q2 Wlz 2019 origineel - plakkopie.xlsm]Blad7'!$D$133"]
[70128689,{"$f":"[6]Blad7!$E$133","v":0},null,null,null,"*='G:\\verwerk\\vsd_prod\\formats\\kwartaalstaat\\WLZ\\2019\\Formats\\KOSTA\\[KOSTA Q2 Wlz 2019 origineel - plakkopie.xlsm]Blad7'!$E$133"]
[70128690,{"$f":"[6]Blad7!$D$134","v":0},null,null,null,"*='G:\\verwerk\\vsd_prod\\formats\\kwartaalstaat\\WLZ\\2019\\Formats\\KOSTA\\[KOSTA Q2 Wlz 2019 origineel - plakkopie.xlsm]Blad7'!$D$134"]
[70128691,{"$f":"[6]Blad7!$E$134","v":0},null,null,null,"*='G:\\verwerk\\vsd_prod\\formats\\kwartaalstaat\\WLZ\\2019\\Formats\\KOSTA\\[KOSTA Q2 Wlz 2019 origineel - plakkopie.xlsm]Blad7'!$E$134"]
[70128692,{"$f":"[6]Blad7!$D$135","v":0},null,null,null,"*='G:\\verwerk\\vsd_prod\\formats\\kwartaalstaat\\WLZ\\2019\\Formats\\KOSTA\\[KOSTA Q2 Wlz 2019 origineel - plakkopie.xlsm]Blad7'!$D$135"]
[70128693,{"$f":"[6]Blad7!$E$135","v":0},null,null,null,"*='G:\\verwerk\\vsd_prod\\formats\\kwartaalstaat\\WLZ\\2019\\Formats\\KOSTA\\[KOSTA Q2 Wlz 2019 origineel - plakkopie.xlsm]Blad7'!$E$135"]
[70128694,{"$f":"[6]Blad7!$D$136","v":0},null,null,null,"*='G:\\verwerk\\vsd_prod\\formats\\kwartaalstaat\\WLZ\\2019\\Formats\\KOSTA\\[KOSTA Q2 Wlz 2019 origineel - plakkopie.xlsm]Blad7'!$D$136"]
[70128695,{"$f":"[6]Blad7!$E$136","v":0},null,null,null,"*='G:\\verwerk\\vsd_prod\\formats\\kwartaalstaat\\WLZ\\2019\\Formats\\KOSTA\\[KOSTA Q2 Wlz 2019 origineel - plakkopie.xlsm]Blad7'!$E$136"]
[70128696,{"$f":"[6]Blad7!$D$140","v":0},null,null,null,"*='G:\\verwerk\\vsd_prod\\formats\\kwartaalstaat\\WLZ\\2019\\Formats\\KOSTA\\[KOSTA Q2 Wlz 2019 origineel - plakkopie.xlsm]Blad7'!$D$140"]
[70128697,{"$f":"[6]Blad7!$E$140","v":0},null,null,null,"*='G:\\verwerk\\vsd_prod\\formats\\kwartaalstaat\\WLZ\\2019\\Formats\\KOSTA\\[KOSTA Q2 Wlz 2019 origineel - plakkopie.xlsm]Blad7'!$E$140"]
[70128698,{"$f":"[6]Blad7!$D$141","v":0},null,null,null,"*='G:\\verwerk\\vsd_prod\\formats\\kwartaalstaat\\WLZ\\2019\\Formats\\KOSTA\\[KOSTA Q2 Wlz 2019 origineel - plakkopie.xlsm]Blad7'!$D$141"]
[70128699,{"$f":"[6]Blad7!$E$141","v":0},null,null,null,"*='G:\\verwerk\\vsd_prod\\formats\\kwartaalstaat\\WLZ\\2019\\Formats\\KOSTA\\[KOSTA Q2 Wlz 2019 origineel - plakkopie.xlsm]Blad7'!$E$141"]
[70128700,{"$f":"[6]Blad7!$D$142","v":0},null,null,null,"*='G:\\verwerk\\vsd_prod\\formats\\kwartaalstaat\\WLZ\\2019\\Formats\\KOSTA\\[KOSTA Q2 Wlz 2019 origineel - plakkopie.xlsm]Blad7'!$D$142"]
[70128701,{"$f":"[6]Blad7!$E$142","v":0},null,null,null,"*='G:\\verwerk\\vsd_prod\\formats\\kwartaalstaat\\WLZ\\2019\\Formats\\KOSTA\\[KOSTA Q2 Wlz 2019 origineel - plakkopie.xlsm]Blad7'!$E$142"]
[70128702,{"$f":"[6]Blad7!$D$143","v":0},null,null,null,"*='G:\\verwerk\\vsd_prod\\formats\\kwartaalstaat\\WLZ\\2019\\Formats\\KOSTA\\[KOSTA Q2 Wlz 2019 origineel - plakkopie.xlsm]Blad7'!$D$143"]
[70128703,{"$f":"[6]Blad7!$E$143","v":0},null,null,null,"*='G:\\verwerk\\vsd_prod\\formats\\kwartaalstaat\\WLZ\\2019\\Formats\\KOSTA\\[KOSTA Q2 Wlz 2019 origineel - plakkopie.xlsm]Blad7'!$E$143"]
[70128704,{"$f":"[6]Blad7!$D$144","v":0},null,null,null,"*='G:\\verwerk\\vsd_prod\\formats\\kwartaalstaat\\WLZ\\2019\\Formats\\KOSTA\\[KOSTA Q2 Wlz 2019 origineel - plakkopie.xlsm]Blad7'!$D$144"]
[70128705,{"$f":"[6]Blad7!$E$144","v":0},null,null,null,"*='G:\\verwerk\\vsd_prod\\formats\\kwartaalstaat\\WLZ\\2019\\Formats\\KOSTA\\[KOSTA Q2 Wlz 2019 origineel - plakkopie.xlsm]Blad7'!$E$144"]
[70128706,{"$f":"[6]Blad7!$D$148","v":0},null,null,null,"*='G:\\verwerk\\vsd_prod\\formats\\kwartaalstaat\\WLZ\\2019\\Formats\\KOSTA\\[KOSTA Q2 Wlz 2019 origineel - plakkopie.xlsm]Blad7'!$D$148"]
[70128707,{"$f":"[6]Blad7!$E$148","v":0},null,null,null,"*='G:\\verwerk\\vsd_prod\\formats\\kwartaalstaat\\WLZ\\2019\\Formats\\KOSTA\\[KOSTA Q2 Wlz 2019 origineel - plakkopie.xlsm]Blad7'!$E$148"]
[70128708,{"$f":"[6]Blad7!$D$152","v":0},null,null,null,"*='G:\\verwerk\\vsd_prod\\formats\\kwartaalstaat\\WLZ\\2019\\Formats\\KOSTA\\[KOSTA Q2 Wlz 2019 origineel - plakkopie.xlsm]Blad7'!$D$152"]
[70128709,{"$f":"[6]Blad7!$E$152","v":0},null,null,null,"*='G:\\verwerk\\vsd_prod\\formats\\kwartaalstaat\\WLZ\\2019\\Formats\\KOSTA\\[KOSTA Q2 Wlz 2019 origineel - plakkopie.xlsm]Blad7'!$E$152"]
[70128710,{"$f":"[6]Blad7!$D$153","v":0},null,null,null,"*='G:\\verwerk\\vsd_prod\\formats\\kwartaalstaat\\WLZ\\2019\\Formats\\KOSTA\\[KOSTA Q2 Wlz 2019 origineel - plakkopie.xlsm]Blad7'!$D$153"]
[70128711,{"$f":"[6]Blad7!$E$153","v":0},null,null,null,"*='G:\\verwerk\\vsd_prod\\formats\\kwartaalstaat\\WLZ\\2019\\Formats\\KOSTA\\[KOSTA Q2 Wlz 2019 origineel - plakkopie.xlsm]Blad7'!$E$153"]
[70128712,{"$f":"[6]Blad7!$D$154","v":0},null,null,null,"*='G:\\verwerk\\vsd_prod\\formats\\kwartaalstaat\\WLZ\\2019\\Formats\\KOSTA\\[KOSTA Q2 Wlz 2019 origineel - plakkopie.xlsm]Blad7'!$D$154"]
[70128713,{"$f":"[6]Blad7!$E$154","v":0},null,null,null,"*='G:\\verwerk\\vsd_prod\\formats\\kwartaalstaat\\WLZ\\2019\\Formats\\KOSTA\\[KOSTA Q2 Wlz 2019 origineel - plakkopie.xlsm]Blad7'!$E$154"]
[70128714,{"$f":"[6]Blad7!$D$155","v":0},null,null,null,"*='G:\\verwerk\\vsd_prod\\formats\\kwartaalstaat\\WLZ\\2019\\Formats\\KOSTA\\[KOSTA Q2 Wlz 2019 origineel - plakkopie.xlsm]Blad7'!$D$155"]
[70128715,{"$f":"[6]Blad7!$E$155","v":0},null,null,null,"*='G:\\verwerk\\vsd_prod\\formats\\kwartaalstaat\\WLZ\\2019\\Formats\\KOSTA\\[KOSTA Q2 Wlz 2019 origineel - plakkopie.xlsm]Blad7'!$E$155"]
[70128716,{"$f":"[6]Blad7!$D$156","v":0},null,null,null,"*='G:\\verwerk\\vsd_prod\\formats\\kwartaalstaat\\WLZ\\2019\\Formats\\KOSTA\\[KOSTA Q2 Wlz 2019 origineel - plakkopie.xlsm]Blad7'!$D$156"]
[70128717,{"$f":"[6]Blad7!$E$156","v":0},null,null,null,"*='G:\\verwerk\\vsd_prod\\formats\\kwartaalstaat\\WLZ\\2019\\Formats\\KOSTA\\[KOSTA Q2 Wlz 2019 origineel - plakkopie.xlsm]Blad7'!$E$156"]
[70128718,{"$f":"[6]Blad7!$D$157","v":0},null,null,null,"*='G:\\verwerk\\vsd_prod\\formats\\kwartaalstaat\\WLZ\\2019\\Formats\\KOSTA\\[KOSTA Q2 Wlz 2019 origineel - plakkopie.xlsm]Blad7'!$D$157"]
[70128719,{"$f":"[6]Blad7!$E$157","v":0},null,null,null,"*='G:\\verwerk\\vsd_prod\\formats\\kwartaalstaat\\WLZ\\2019\\Formats\\KOSTA\\[KOSTA Q2 Wlz 2019 origineel - plakkopie.xlsm]Blad7'!$E$157"]
[70128720,{"$f":"[6]Blad7!$D$158","v":0},null,null,null,"*='G:\\verwerk\\vsd_prod\\formats\\kwartaalstaat\\WLZ\\2019\\Formats\\KOSTA\\[KOSTA Q2 Wlz 2019 origineel - plakkopie.xlsm]Blad7'!$D$158"]
[70128721,{"$f":"[6]Blad7!$E$158","v":0},null,null,null,"*='G:\\verwerk\\vsd_prod\\formats\\kwartaalstaat\\WLZ\\2019\\Formats\\KOSTA\\[KOSTA Q2 Wlz 2019 origineel - plakkopie.xlsm]Blad7'!$E$158"]
[70128722,{"$f":"[6]Blad7!$D$159","v":0},null,null,null,"*='G:\\verwerk\\vsd_prod\\formats\\kwartaalstaat\\WLZ\\2019\\Formats\\KOSTA\\[KOSTA Q2 Wlz 2019 origineel - plakkopie.xlsm]Blad7'!$D$159"]
[70128723,{"$f":"[6]Blad7!$E$159","v":0},null,null,null,"*='G:\\verwerk\\vsd_prod\\formats\\kwartaalstaat\\WLZ\\2019\\Formats\\KOSTA\\[KOSTA Q2 Wlz 2019 origineel - plakkopie.xlsm]Blad7'!$E$159"]
[70128724,{"$f":"[6]Blad7!$D$160","v":0},null,null,null,"*='G:\\verwerk\\vsd_prod\\formats\\kwartaalstaat\\WLZ\\2019\\Formats\\KOSTA\\[KOSTA Q2 Wlz 2019 origineel - plakkopie.xlsm]Blad7'!$D$160"]
[70128725,{"$f":"[6]Blad7!$E$160","v":0},null,null,null,"*='G:\\verwerk\\vsd_prod\\formats\\kwartaalstaat\\WLZ\\2019\\Formats\\KOSTA\\[KOSTA Q2 Wlz 2019 origineel - plakkopie.xlsm]Blad7'!$E$160"]
[70128726,{"$f":"[6]Blad7!$D$161","v":0},null,null,null,"*='G:\\verwerk\\vsd_prod\\formats\\kwartaalstaat\\WLZ\\2019\\Formats\\KOSTA\\[KOSTA Q2 Wlz 2019 origineel - plakkopie.xlsm]Blad7'!$D$161"]
[70128727,{"$f":"[6]Blad7!$E$161","v":0},null,null,null,"*='G:\\verwerk\\vsd_prod\\formats\\kwartaalstaat\\WLZ\\2019\\Formats\\KOSTA\\[KOSTA Q2 Wlz 2019 origineel - plakkopie.xlsm]Blad7'!$E$161"]
[70128728,{"$f":"[6]Blad7!$D$162","v":0},null,null,null,"*='G:\\verwerk\\vsd_prod\\formats\\kwartaalstaat\\WLZ\\2019\\Formats\\KOSTA\\[KOSTA Q2 Wlz 2019 origineel - plakkopie.xlsm]Blad7'!$D$162"]
[70128729,{"$f":"[6]Blad7!$E$162","v":0},null,null,null,"*='G:\\verwerk\\vsd_prod\\formats\\kwartaalstaat\\WLZ\\2019\\Formats\\KOSTA\\[KOSTA Q2 Wlz 2019 origineel - plakkopie.xlsm]Blad7'!$E$162"]
[70128730,{"$f":"[6]Blad7!$D$163","v":0},null,null,null,"*='G:\\verwerk\\vsd_prod\\formats\\kwartaalstaat\\WLZ\\2019\\Formats\\KOSTA\\[KOSTA Q2 Wlz 2019 origineel - plakkopie.xlsm]Blad7'!$D$163"]
[70128731,{"$f":"[6]Blad7!$E$163","v":0},null,null,null,"*='G:\\verwerk\\vsd_prod\\formats\\kwartaalstaat\\WLZ\\2019\\Formats\\KOSTA\\[KOSTA Q2 Wlz 2019 origineel - plakkopie.xlsm]Blad7'!$E$163"]
[70128732,{"$f":"[6]Blad7!$D$167","v":0},null,null,null,"*='G:\\verwerk\\vsd_prod\\formats\\kwartaalstaat\\WLZ\\2019\\Formats\\KOSTA\\[KOSTA Q2 Wlz 2019 origineel - plakkopie.xlsm]Blad7'!$D$167"]
[70128733,{"$f":"[6]Blad7!$E$167","v":0},null,null,null,"*='G:\\verwerk\\vsd_prod\\formats\\kwartaalstaat\\WLZ\\2019\\Formats\\KOSTA\\[KOSTA Q2 Wlz 2019 origineel - plakkopie.xlsm]Blad7'!$E$167"]
[70128734,{"$f":"[6]Blad7!$D$168","v":0},null,null,null,"*='G:\\verwerk\\vsd_prod\\formats\\kwartaalstaat\\WLZ\\2019\\Formats\\KOSTA\\[KOSTA Q2 Wlz 2019 origineel - plakkopie.xlsm]Blad7'!$D$168"]
[70128735,{"$f":"[6]Blad7!$E$168","v":0},null,null,null,"*='G:\\verwerk\\vsd_prod\\formats\\kwartaalstaat\\WLZ\\2019\\Formats\\KOSTA\\[KOSTA Q2 Wlz 2019 origineel - plakkopie.xlsm]Blad7'!$E$168"]
[70128736,{"$f":"[6]Blad7!$D$169","v":0},null,null,null,"*='G:\\verwerk\\vsd_prod\\formats\\kwartaalstaat\\WLZ\\2019\\Formats\\KOSTA\\[KOSTA Q2 Wlz 2019 origineel - plakkopie.xlsm]Blad7'!$D$169"]
[70128737,{"$f":"[6]Blad7!$E$169","v":0},null,null,null,"*='G:\\verwerk\\vsd_prod\\formats\\kwartaalstaat\\WLZ\\2019\\Formats\\KOSTA\\[KOSTA Q2 Wlz 2019 origineel - plakkopie.xlsm]Blad7'!$E$169"]
[70128738,{"$f":"[6]Blad7!$D$170","v":0},null,null,null,"*='G:\\verwerk\\vsd_prod\\formats\\kwartaalstaat\\WLZ\\2019\\Formats\\KOSTA\\[KOSTA Q2 Wlz 2019 origineel - plakkopie.xlsm]Blad7'!$D$170"]
[70128739,{"$f":"[6]Blad7!$E$170","v":0},null,null,null,"*='G:\\verwerk\\vsd_prod\\formats\\kwartaalstaat\\WLZ\\2019\\Formats\\KOSTA\\[KOSTA Q2 Wlz 2019 origineel - plakkopie.xlsm]Blad7'!$E$170"]
[70128740,{"$f":"[6]Blad7!$D$171","v":0},null,null,null,"*='G:\\verwerk\\vsd_prod\\formats\\kwartaalstaat\\WLZ\\2019\\Formats\\KOSTA\\[KOSTA Q2 Wlz 2019 origineel - plakkopie.xlsm]Blad7'!$D$171"]
[70128741,{"$f":"[6]Blad7!$E$171","v":0},null,null,null,"*='G:\\verwerk\\vsd_prod\\formats\\kwartaalstaat\\WLZ\\2019\\Formats\\KOSTA\\[KOSTA Q2 Wlz 2019 origineel - plakkopie.xlsm]Blad7'!$E$171"]
[70128742,{"$f":"[6]Blad7!$D$172","v":0},null,null,null,"*='G:\\verwerk\\vsd_prod\\formats\\kwartaalstaat\\WLZ\\2019\\Formats\\KOSTA\\[KOSTA Q2 Wlz 2019 origineel - plakkopie.xlsm]Blad7'!$D$172"]
[70128743,{"$f":"[6]Blad7!$E$172","v":0},null,null,null,"*='G:\\verwerk\\vsd_prod\\formats\\kwartaalstaat\\WLZ\\2019\\Formats\\KOSTA\\[KOSTA Q2 Wlz 2019 origineel - plakkopie.xlsm]Blad7'!$E$172"]
[70128744,{"$f":"[6]Blad7!$D$173","v":0},null,null,null,"*='G:\\verwerk\\vsd_prod\\formats\\kwartaalstaat\\WLZ\\2019\\Formats\\KOSTA\\[KOSTA Q2 Wlz 2019 origineel - plakkopie.xlsm]Blad7'!$D$173"]
[70128745,{"$f":"[6]Blad7!$E$173","v":0},null,null,null,"*='G:\\verwerk\\vsd_prod\\formats\\kwartaalstaat\\WLZ\\2019\\Formats\\KOSTA\\[KOSTA Q2 Wlz 2019 origineel - plakkopie.xlsm]Blad7'!$E$173"]
[70128746,{"$f":"[6]Blad7!$D$174","v":0},null,null,null,"*='G:\\verwerk\\vsd_prod\\formats\\kwartaalstaat\\WLZ\\2019\\Formats\\KOSTA\\[KOSTA Q2 Wlz 2019 origineel - plakkopie.xlsm]Blad7'!$D$174"]
[70128747,{"$f":"[6]Blad7!$E$174","v":0},null,null,null,"*='G:\\verwerk\\vsd_prod\\formats\\kwartaalstaat\\WLZ\\2019\\Formats\\KOSTA\\[KOSTA Q2 Wlz 2019 origineel - plakkopie.xlsm]Blad7'!$E$174"]
[70128748,{"$f":"[6]Blad7!$D$175","v":0},null,null,null,"*='G:\\verwerk\\vsd_prod\\formats\\kwartaalstaat\\WLZ\\2019\\Formats\\KOSTA\\[KOSTA Q2 Wlz 2019 origineel - plakkopie.xlsm]Blad7'!$D$175"]
[70128749,{"$f":"[6]Blad7!$E$175","v":0},null,null,null,"*='G:\\verwerk\\vsd_prod\\formats\\kwartaalstaat\\WLZ\\2019\\Formats\\KOSTA\\[KOSTA Q2 Wlz 2019 origineel - plakkopie.xlsm]Blad7'!$E$175"]
[70128750,{"$f":"[6]Blad7!$D$176","v":0},null,null,null,"*='G:\\verwerk\\vsd_prod\\formats\\kwartaalstaat\\WLZ\\2019\\Formats\\KOSTA\\[KOSTA Q2 Wlz 2019 origineel - plakkopie.xlsm]Blad7'!$D$176"]
[70128751,{"$f":"[6]Blad7!$E$176","v":0},null,null,null,"*='G:\\verwerk\\vsd_prod\\formats\\kwartaalstaat\\WLZ\\2019\\Formats\\KOSTA\\[KOSTA Q2 Wlz 2019 origineel - plakkopie.xlsm]Blad7'!$E$176"]
[70128752,{"$f":"[6]Blad7!$D$177","v":0},null,null,null,"*='G:\\verwerk\\vsd_prod\\formats\\kwartaalstaat\\WLZ\\2019\\Formats\\KOSTA\\[KOSTA Q2 Wlz 2019 origineel - plakkopie.xlsm]Blad7'!$D$177"]
[70128753,{"$f":"[6]Blad7!$E$177","v":0},null,null,null,"*='G:\\verwerk\\vsd_prod\\formats\\kwartaalstaat\\WLZ\\2019\\Formats\\KOSTA\\[KOSTA Q2 Wlz 2019 origineel - plakkopie.xlsm]Blad7'!$E$177"]
[70128754,{"$f":"[6]Blad7!$D$178","v":0},null,null,null,"*='G:\\verwerk\\vsd_prod\\formats\\kwartaalstaat\\WLZ\\2019\\Formats\\KOSTA\\[KOSTA Q2 Wlz 2019 origineel - plakkopie.xlsm]Blad7'!$D$178"]
[70128755,{"$f":"[6]Blad7!$E$178","v":0},null,null,null,"*='G:\\verwerk\\vsd_prod\\formats\\kwartaalstaat\\WLZ\\2019\\Formats\\KOSTA\\[KOSTA Q2 Wlz 2019 origineel - plakkopie.xlsm]Blad7'!$E$178"]
[70128756,{"$f":"[6]Blad7!$D$182","v":0},null,null,null,"*='G:\\verwerk\\vsd_prod\\formats\\kwartaalstaat\\WLZ\\2019\\Formats\\KOSTA\\[KOSTA Q2 Wlz 2019 origineel - plakkopie.xlsm]Blad7'!$D$182"]
[70128757,{"$f":"[6]Blad7!$E$182","v":0},null,null,null,"*='G:\\verwerk\\vsd_prod\\formats\\kwartaalstaat\\WLZ\\2019\\Formats\\KOSTA\\[KOSTA Q2 Wlz 2019 origineel - plakkopie.xlsm]Blad7'!$E$182"]
[70128758,{"$f":"[6]Blad7!$D$183","v":0},null,null,null,"*='G:\\verwerk\\vsd_prod\\formats\\kwartaalstaat\\WLZ\\2019\\Formats\\KOSTA\\[KOSTA Q2 Wlz 2019 origineel - plakkopie.xlsm]Blad7'!$D$183"]
[70128759,{"$f":"[6]Blad7!$E$183","v":0},null,null,null,"*='G:\\verwerk\\vsd_prod\\formats\\kwartaalstaat\\WLZ\\2019\\Formats\\KOSTA\\[KOSTA Q2 Wlz 2019 origineel - plakkopie.xlsm]Blad7'!$E$183"]
[70128760,{"$f":"[6]Blad7!$D$184","v":0},null,null,null,"*='G:\\verwerk\\vsd_prod\\formats\\kwartaalstaat\\WLZ\\2019\\Formats\\KOSTA\\[KOSTA Q2 Wlz 2019 origineel - plakkopie.xlsm]Blad7'!$D$184"]
[70128761,{"$f":"[6]Blad7!$E$184","v":0},null,null,null,"*='G:\\verwerk\\vsd_prod\\formats\\kwartaalstaat\\WLZ\\2019\\Formats\\KOSTA\\[KOSTA Q2 Wlz 2019 origineel - plakkopie.xlsm]Blad7'!$E$184"]
[70128762,{"$f":"[6]Blad7!$D$185","v":0},null,null,null,"*='G:\\verwerk\\vsd_prod\\formats\\kwartaalstaat\\WLZ\\2019\\Formats\\KOSTA\\[KOSTA Q2 Wlz 2019 origineel - plakkopie.xlsm]Blad7'!$D$185"]
[70128763,{"$f":"[6]Blad7!$E$185","v":0},null,null,null,"*='G:\\verwerk\\vsd_prod\\formats\\kwartaalstaat\\WLZ\\2019\\Formats\\KOSTA\\[KOSTA Q2 Wlz 2019 origineel - plakkopie.xlsm]Blad7'!$E$185"]
[70128764,{"$f":"[6]Blad7!$D$186","v":0},null,null,null,"*='G:\\verwerk\\vsd_prod\\formats\\kwartaalstaat\\WLZ\\2019\\Formats\\KOSTA\\[KOSTA Q2 Wlz 2019 origineel - plakkopie.xlsm]Blad7'!$D$186"]
[70128765,{"$f":"[6]Blad7!$E$186","v":0},null,null,null,"*='G:\\verwerk\\vsd_prod\\formats\\kwartaalstaat\\WLZ\\2019\\Formats\\KOSTA\\[KOSTA Q2 Wlz 2019 origineel - plakkopie.xlsm]Blad7'!$E$186"]
[70128766,{"$f":"[6]Blad7!$D$187","v":0},null,null,null,"*='G:\\verwerk\\vsd_prod\\formats\\kwartaalstaat\\WLZ\\2019\\Formats\\KOSTA\\[KOSTA Q2 Wlz 2019 origineel - plakkopie.xlsm]Blad7'!$D$187"]
[70128767,{"$f":"[6]Blad7!$E$187","v":0},null,null,null,"*='G:\\verwerk\\vsd_prod\\formats\\kwartaalstaat\\WLZ\\2019\\Formats\\KOSTA\\[KOSTA Q2 Wlz 2019 origineel - plakkopie.xlsm]Blad7'!$E$187"]
[70128768,{"$f":"[6]Blad7!$D$188","v":0},null,null,null,"*='G:\\verwerk\\vsd_prod\\formats\\kwartaalstaat\\WLZ\\2019\\Formats\\KOSTA\\[KOSTA Q2 Wlz 2019 origineel - plakkopie.xlsm]Blad7'!$D$188"]
[70128769,{"$f":"[6]Blad7!$E$188","v":0},null,null,null,"*='G:\\verwerk\\vsd_prod\\formats\\kwartaalstaat\\WLZ\\2019\\Formats\\KOSTA\\[KOSTA Q2 Wlz 2019 origineel - plakkopie.xlsm]Blad7'!$E$188"]
[70128770,{"$f":"[6]Blad7!$D$189","v":0},null,null,null,"*='G:\\verwerk\\vsd_prod\\formats\\kwartaalstaat\\WLZ\\2019\\Formats\\KOSTA\\[KOSTA Q2 Wlz 2019 origineel - plakkopie.xlsm]Blad7'!$D$189"]
[70128771,{"$f":"[6]Blad7!$E$189","v":0},null,null,null,"*='G:\\verwerk\\vsd_prod\\formats\\kwartaalstaat\\WLZ\\2019\\Formats\\KOSTA\\[KOSTA Q2 Wlz 2019 origineel - plakkopie.xlsm]Blad7'!$E$189"]
[70128772,{"$f":"[6]Blad7!$D$190","v":0},null,null,null,"*='G:\\verwerk\\vsd_prod\\formats\\kwartaalstaat\\WLZ\\2019\\Formats\\KOSTA\\[KOSTA Q2 Wlz 2019 origineel - plakkopie.xlsm]Blad7'!$D$190"]
[70128773,{"$f":"[6]Blad7!$E$190","v":0},null,null,null,"*='G:\\verwerk\\vsd_prod\\formats\\kwartaalstaat\\WLZ\\2019\\Formats\\KOSTA\\[KOSTA Q2 Wlz 2019 origineel - plakkopie.xlsm]Blad7'!$E$190"]
[70128774,{"$f":"[6]Blad7!$D$191","v":0},null,null,null,"*='G:\\verwerk\\vsd_prod\\formats\\kwartaalstaat\\WLZ\\2019\\Formats\\KOSTA\\[KOSTA Q2 Wlz 2019 origineel - plakkopie.xlsm]Blad7'!$D$191"]
[70128775,{"$f":"[6]Blad7!$E$191","v":0},null,null,null,"*='G:\\verwerk\\vsd_prod\\formats\\kwartaalstaat\\WLZ\\2019\\Formats\\KOSTA\\[KOSTA Q2 Wlz 2019 origineel - plakkopie.xlsm]Blad7'!$E$191"]
[70128776,{"$f":"[6]Blad7!$D$192","v":0},null,null,null,"*='G:\\verwerk\\vsd_prod\\formats\\kwartaalstaat\\WLZ\\2019\\Formats\\KOSTA\\[KOSTA Q2 Wlz 2019 origineel - plakkopie.xlsm]Blad7'!$D$192"]
[70128777,{"$f":"[6]Blad7!$E$192","v":0},null,null,null,"*='G:\\verwerk\\vsd_prod\\formats\\kwartaalstaat\\WLZ\\2019\\Formats\\KOSTA\\[KOSTA Q2 Wlz 2019 origineel - plakkopie.xlsm]Blad7'!$E$192"]
[70128778,{"$f":"[6]Blad7!$D$193","v":0},null,null,null,"*='G:\\verwerk\\vsd_prod\\formats\\kwartaalstaat\\WLZ\\2019\\Formats\\KOSTA\\[KOSTA Q2 Wlz 2019 origineel - plakkopie.xlsm]Blad7'!$D$193"]
[70128779,{"$f":"[6]Blad7!$E$193","v":0},null,null,null,"*='G:\\verwerk\\vsd_prod\\formats\\kwartaalstaat\\WLZ\\2019\\Formats\\KOSTA\\[KOSTA Q2 Wlz 2019 origineel - plakkopie.xlsm]Blad7'!$E$193"]
[70128780,{"$f":"[6]Blad7!$D$197","v":0},null,null,null,"*='G:\\verwerk\\vsd_prod\\formats\\kwartaalstaat\\WLZ\\2019\\Formats\\KOSTA\\[KOSTA Q2 Wlz 2019 origineel - plakkopie.xlsm]Blad7'!$D$197"]
[70128781,{"$f":"[6]Blad7!$E$197","v":0},null,null,null,"*='G:\\verwerk\\vsd_prod\\formats\\kwartaalstaat\\WLZ\\2019\\Formats\\KOSTA\\[KOSTA Q2 Wlz 2019 origineel - plakkopie.xlsm]Blad7'!$E$197"]
[70128782,{"$f":"[6]Blad7!$D$198","v":0},null,null,null,"*='G:\\verwerk\\vsd_prod\\formats\\kwartaalstaat\\WLZ\\2019\\Formats\\KOSTA\\[KOSTA Q2 Wlz 2019 origineel - plakkopie.xlsm]Blad7'!$D$198"]
[70128783,{"$f":"[6]Blad7!$E$198","v":0},null,null,null,"*='G:\\verwerk\\vsd_prod\\formats\\kwartaalstaat\\WLZ\\2019\\Formats\\KOSTA\\[KOSTA Q2 Wlz 2019 origineel - plakkopie.xlsm]Blad7'!$E$198"]
[70128784,{"$f":"[6]Blad7!$D$199","v":0},null,null,null,"*='G:\\verwerk\\vsd_prod\\formats\\kwartaalstaat\\WLZ\\2019\\Formats\\KOSTA\\[KOSTA Q2 Wlz 2019 origineel - plakkopie.xlsm]Blad7'!$D$199"]
[70128785,{"$f":"[6]Blad7!$E$199","v":0},null,null,null,"*='G:\\verwerk\\vsd_prod\\formats\\kwartaalstaat\\WLZ\\2019\\Formats\\KOSTA\\[KOSTA Q2 Wlz 2019 origineel - plakkopie.xlsm]Blad7'!$E$199"]
[70128786,{"$f":"[6]Blad7!$D$200","v":0},null,null,null,"*='G:\\verwerk\\vsd_prod\\formats\\kwartaalstaat\\WLZ\\2019\\Formats\\KOSTA\\[KOSTA Q2 Wlz 2019 origineel - plakkopie.xlsm]Blad7'!$D$200"]
[70128787,{"$f":"[6]Blad7!$E$200","v":0},null,null,null,"*='G:\\verwerk\\vsd_prod\\formats\\kwartaalstaat\\WLZ\\2019\\Formats\\KOSTA\\[KOSTA Q2 Wlz 2019 origineel - plakkopie.xlsm]Blad7'!$E$200"]
[70128788,{"$f":"[6]Blad7!$D$201","v":0},null,null,null,"*='G:\\verwerk\\vsd_prod\\formats\\kwartaalstaat\\WLZ\\2019\\Formats\\KOSTA\\[KOSTA Q2 Wlz 2019 origineel - plakkopie.xlsm]Blad7'!$D$201"]
[70128789,{"$f":"[6]Blad7!$E$201","v":0},null,null,null,"*='G:\\verwerk\\vsd_prod\\formats\\kwartaalstaat\\WLZ\\2019\\Formats\\KOSTA\\[KOSTA Q2 Wlz 2019 origineel - plakkopie.xlsm]Blad7'!$E$201"]
[70128790,{"$f":"[6]Blad7!$D$202","v":0},null,null,null,"*='G:\\verwerk\\vsd_prod\\formats\\kwartaalstaat\\WLZ\\2019\\Formats\\KOSTA\\[KOSTA Q2 Wlz 2019 origineel - plakkopie.xlsm]Blad7'!$D$202"]
[70128791,{"$f":"[6]Blad7!$E$202","v":0},null,null,null,"*='G:\\verwerk\\vsd_prod\\formats\\kwartaalstaat\\WLZ\\2019\\Formats\\KOSTA\\[KOSTA Q2 Wlz 2019 origineel - plakkopie.xlsm]Blad7'!$E$202"]
[70128792,{"$f":"[6]Blad7!$D$203","v":0},null,null,null,"*='G:\\verwerk\\vsd_prod\\formats\\kwartaalstaat\\WLZ\\2019\\Formats\\KOSTA\\[KOSTA Q2 Wlz 2019 origineel - plakkopie.xlsm]Blad7'!$D$203"]
[70128793,{"$f":"[6]Blad7!$E$203","v":0},null,null,null,"*='G:\\verwerk\\vsd_prod\\formats\\kwartaalstaat\\WLZ\\2019\\Formats\\KOSTA\\[KOSTA Q2 Wlz 2019 origineel - plakkopie.xlsm]Blad7'!$E$203"]
[70128794,{"$f":"[6]Blad7!$D$204","v":0},null,null,null,"*='G:\\verwerk\\vsd_prod\\formats\\kwartaalstaat\\WLZ\\2019\\Formats\\KOSTA\\[KOSTA Q2 Wlz 2019 origineel - plakkopie.xlsm]Blad7'!$D$204"]
[70128795,{"$f":"[6]Blad7!$E$204","v":0},null,null,null,"*='G:\\verwerk\\vsd_prod\\formats\\kwartaalstaat\\WLZ\\2019\\Formats\\KOSTA\\[KOSTA Q2 Wlz 2019 origineel - plakkopie.xlsm]Blad7'!$E$204"]
[70128796,{"$f":"[6]Blad7!$D$205","v":0},null,null,null,"*='G:\\verwerk\\vsd_prod\\formats\\kwartaalstaat\\WLZ\\2019\\Formats\\KOSTA\\[KOSTA Q2 Wlz 2019 origineel - plakkopie.xlsm]Blad7'!$D$205"]
[70128797,{"$f":"[6]Blad7!$E$205","v":0},null,null,null,"*='G:\\verwerk\\vsd_prod\\formats\\kwartaalstaat\\WLZ\\2019\\Formats\\KOSTA\\[KOSTA Q2 Wlz 2019 origineel - plakkopie.xlsm]Blad7'!$E$205"]
[70128798,{"$f":"[6]Blad7!$D$206","v":0},null,null,null,"*='G:\\verwerk\\vsd_prod\\formats\\kwartaalstaat\\WLZ\\2019\\Formats\\KOSTA\\[KOSTA Q2 Wlz 2019 origineel - plakkopie.xlsm]Blad7'!$D$206"]
[70128799,{"$f":"[6]Blad7!$E$206","v":0},null,null,null,"*='G:\\verwerk\\vsd_prod\\formats\\kwartaalstaat\\WLZ\\2019\\Formats\\KOSTA\\[KOSTA Q2 Wlz 2019 origineel - plakkopie.xlsm]Blad7'!$E$206"]
[70128800,{"$f":"[6]Blad7!$D$207","v":0},null,null,null,"*='G:\\verwerk\\vsd_prod\\formats\\kwartaalstaat\\WLZ\\2019\\Formats\\KOSTA\\[KOSTA Q2 Wlz 2019 origineel - plakkopie.xlsm]Blad7'!$D$207"]
[70128801,{"$f":"[6]Blad7!$E$207","v":0},null,null,null,"*='G:\\verwerk\\vsd_prod\\formats\\kwartaalstaat\\WLZ\\2019\\Formats\\KOSTA\\[KOSTA Q2 Wlz 2019 origineel - plakkopie.xlsm]Blad7'!$E$207"]
[70128802,{"$f":"[6]Blad7!$D$208","v":0},null,null,null,"*='G:\\verwerk\\vsd_prod\\formats\\kwartaalstaat\\WLZ\\2019\\Formats\\KOSTA\\[KOSTA Q2 Wlz 2019 origineel - plakkopie.xlsm]Blad7'!$D$208"]
[70128803,{"$f":"[6]Blad7!$E$208","v":0},null,null,null,"*='G:\\verwerk\\vsd_prod\\formats\\kwartaalstaat\\WLZ\\2019\\Formats\\KOSTA\\[KOSTA Q2 Wlz 2019 origineel - plakkopie.xlsm]Blad7'!$E$208"]